Payment Date,Invoice Reference,Revised Net,Irrecoverable VAT,Vendor,Expense Area Description,Expense Type,Expense Type Description,Revenue / Capital
02/01/2020,1138426,1500,0,Fireangel Safety Technology Ltd,Corporate Management and Support,59164,Equipment,Capital
02/01/2020,102327A,3102.83,0,Townley Network Solutions Ltd,STANNINGLEY,Various,Landlines Call Charges,Revenue
02/01/2020,ATC-17556,1495,0,UK-AFI,TRAINING DELIVERY,19208,Fire Safy Crses-Extl,Revenue
02/01/2020,2484,560,0,Hall Lane Recyclers Ltd,HUNSLET,40025,Scrap Cars Purch,Revenue
02/01/2020,7402579072,4137.6,0,Dell Corporation,Information Technlgy,43022,ICT Spares & Repairs,Revenue
02/01/2020,97811900064666,1376.25,0,Linde Material Handling,FLEET MAINTENANCE,34101,Operating Leases,Revenue
02/01/2020,7970079883,794.6,0,Mitchell Powersystems,FLEET MAINTENANCE,30001,Dir Cost-Spare Parts,Revenue
02/01/2020,3334719,4084.4,0,Bayford Oil,COOKRIDGE,30200,Vehicle Fuel,Revenue
02/01/2020,3344392,4084.4,0,Bayford Oil,Ossett,30200,Vehicle Fuel,Revenue
02/01/2020,1285412200,671.02,0,EE Ltd (Airtime),Various,Various,Corporate Mobile Phone,Revenue
02/01/2020,6569656,818.38,0,Michael Page International Recruitm,PUBLIC INFORMATION,15001,Admin - Basic Pay,Revenue
03/01/2020,3061411,540.48,0,Sybs Ltd,FLEET MAINTENANCE,30001,Dir Cost-Spare Parts,Revenue
03/01/2020,3062949,760.32,0,Sybs Ltd,FLEET MAINTENANCE,30001,Dir Cost-Spare Parts,Revenue
03/01/2020,LGWFHHK4,686.74,0,Npower Ltd,Shipley,25000,Energy-Electric,Revenue
03/01/2020,LGWFHHK5,5038.87,0,Npower Ltd,NEW CONTROL PROJECT,25000,Energy-Electric,Revenue
03/01/2020,LGWFHHK6,2205.49,0,Npower Ltd,BRADFORD,25000,Energy-Electric,Revenue
03/01/2020,LGWFHHK7,1047.28,0,Npower Ltd,PONTEFRACT,25000,Energy-Electric,Revenue
03/01/2020,LGWFHHK8,573.87,0,Npower Ltd,NORMANTON,25000,Energy-Electric,Revenue
03/01/2020,LGWFHHK9,890.96,0,Npower Ltd,ROTHWELL,25000,Energy-Electric,Revenue
03/01/2020,LGWFHHLB,1282.72,0,Npower Ltd,LEEDS,25000,Energy-Electric,Revenue
03/01/2020,INV-026970,558.15,0,Sit-Stand.com,MOORTOWN,40100,Furniture,Revenue
03/01/2020,2481,560,0,Hall Lane Recyclers Ltd,Calderdale Dist Com,40025,Scrap Cars Purch,Revenue
03/01/2020,LGWFHHKY,11339.41,0,Npower Ltd,PROPERTY,25000,Energy-Electric,Revenue
03/01/2020,LGWFHHKZ,990.14,0,Npower Ltd,Rastrick,25000,Energy-Electric,Revenue
03/01/2020,LGWFHHK2,919.26,0,Npower Ltd,Dewsbury ,25000,Energy-Electric,Revenue
03/01/2020,LGWFHHK3,1400.97,0,Npower Ltd,Killingbeck,25000,Energy-Electric,Revenue
03/01/2020,OP/I856393,2502,0,Phoenix Software Ltd,Information Technlgy,43103,ICT Maintenance & Support,Revenue
03/01/2020,650056410000008,632.57,0,Yorkshire Water,Corporate Management and Support,59164,Equipment,Capital
03/01/2020,7402578325,1760.08,0,Dell Corporation,SUPPLIES SECTION,43106,ICT Consumables,Revenue
03/01/2020,EXI1369090,1753.99,0,Lex Autolease,FLEET MANAGEMENT,34001,Vehicle Leasing,Revenue
03/01/2020,EXI1370418,649.72,0,Lex Autolease,FLEET MANAGEMENT,34001,Vehicle Leasing,Revenue
03/01/2020,9105903400191120,4587.81,0,Scottish Water Business Stream Ltd,Killingbeck,26500,Water - Metered,Revenue
03/01/2020,0940000048-085A,1885.84,0,Airwave Solutions Ltd,Information Technlgy,43026,Radio Licensing,Revenue
03/01/2020,937053919,597.4,0,Arco Group,FLEET MAINTENANCE,30002,Consumables-Veh Rep,Revenue
03/01/2020,12040,1239.13,0,Rosenbauer UK PLC,FLEET MANAGEMENT,30004,Rep-Ext Contractors,Revenue
03/01/2020,EC20305281,775,0,Kcom,Information Technlgy,43018,Wan Rental,Revenue
06/01/2020,887/ND/01,640,0,Patricia Haigh,Health & Safety,18301,Specialists Fees,Revenue
06/01/2020,894/SB/01,640,0,Patricia Haigh,Health & Safety,18301,Specialists Fees,Revenue
06/01/2020,891/AM/01,720,0,Patricia Haigh,Health & Safety,18301,Specialists Fees,Revenue
06/01/2020,890/JB/01,1200,0,Patricia Haigh,Health & Safety,18301,Specialists Fees,Revenue
06/01/2020,E2012029664,3088.32,0,Allstar Business Solutions Ltd,MORLEY,30200,Vehicle Fuel,Revenue
06/01/2020,650056800000009,1457.91,0,Yorkshire Water,Corporate Management and Support,59164,Equipment,Capital
06/01/2020,650056420000006,1457.91,0,Yorkshire Water,Corporate Management and Support,59164,Equipment,Capital
06/01/2020,OP/I042578,1559,0,Angloco Ltd,FLEET MANAGEMENT,30004,Rep-Ext Contractors,Revenue
07/01/2020,3412620,7103.91,0,Bayford Oil,HALIFAX,30200,Vehicle Fuel,Revenue
07/01/2020,7970080455,610,0,Mitchell Powersystems,FLEET MANAGEMENT,30004,Rep-Ext Contractors,Revenue
07/01/2020,EXI1372281,1057.42,90.07,Lex Autolease,FLEET MANAGEMENT,34001,Vehicle Leasing,Revenue
07/01/2020,IN55542,745.88,0,BAM FM Limited,TRAINING DELIVERY,21012,Heating & Mechanical,Revenue
07/01/2020,TFM738/01,670.5,0,Thomson FM Ltd,PROPERTY,42511,Consultancy Fees,Revenue
08/01/2020,14772408,2220.6,0,Corona Energy,BRADFORD,25001,Energy-Gas,Revenue
08/01/2020,14772412,900.95,0,Corona Energy,ODSAL,25001,Energy-Gas,Revenue
08/01/2020,14772411,616.11,0,Corona Energy,PONTEFRACT,25001,Energy-Gas,Revenue
08/01/2020,14772409,770.28,0,Corona Energy,TRAINING DELIVERY,25001,Energy-Gas,Revenue
08/01/2020,14772393,822.76,0,Corona Energy,MOORTOWN,25001,Energy-Gas,Revenue
08/01/2020,14772407,1055.84,0,Corona Energy,TODMORDEN,25001,Energy-Gas,Revenue
08/01/2020,14772405,1111.54,0,Corona Energy,TRAINING DELIVERY,25001,Energy-Gas,Revenue
08/01/2020,14772403,508.45,0,Corona Energy,MORLEY,25001,Energy-Gas,Revenue
08/01/2020,14772402,813.03,0,Corona Energy,BINGLEY,25001,Energy-Gas,Revenue
08/01/2020,14772400,1405.71,0,Corona Energy,KEIGHLEY,25001,Energy-Gas,Revenue
08/01/2020,761127,950,0,Access Uk Ltd,Corporate Management and Support,59166,Computer Costs,Capital
08/01/2020,650058130000005,696.57,0,Yorkshire Water,Corporate Management and Support,59164,Equipment,Capital
08/01/2020,3394,980,0,Nviron Limited,Corporate Management and Support,59166,Computer Costs,Capital
08/01/2020,14772394,1142.06,0,Corona Energy,Slaithwaite,25001,Energy-Gas,Revenue
08/01/2020,14772389,2618.37,0,Corona Energy,HALIFAX,25001,Energy-Gas,Revenue
08/01/2020,5003,820,0,The Outreach Organisation Ltd,TRAINING DELIVERY,19241,Service Supp Tng,Revenue
08/01/2020,IN55758,17831.25,0,BAM FM Limited,PROPERTY,20000,Ann Contract/Service,Revenue
08/01/2020,OP/I856904,750.82,0,Phoenix Software Ltd,Information Technlgy,43103,ICT Maintenance & Support,Revenue
08/01/2020,SI219445,2000,0,Dale Power Solutions Ltd,NEW CONTROL PROJECT,20000,Ann Contract/Service,Revenue
08/01/2020,SI218847,594.62,0,Dale Power Solutions Ltd,LEEDS,21013,Electrical Reps (Fr),Revenue
08/01/2020,SINV3572,3600,0,Wakefield College,TRAINING DELIVERY,19203,Non Uniformed,Revenue
08/01/2020,SLF/00002231,5421,0,Kirklees College,TRAINING DELIVERY,19243,Tech Svcs Tng,Revenue
08/01/2020,14772388,1598.8,0,Corona Energy,LEEDS,25001,Energy-Gas,Revenue
08/01/2020,14772386,806.32,0,Corona Energy,FAIRWEATHER GREEN,25001,Energy-Gas,Revenue
08/01/2020,14772385,974.22,0,Corona Energy,ILLINGWORTH,25001,Energy-Gas,Revenue
08/01/2020,14772383,1412.52,0,Corona Energy,COOKRIDGE,25001,Energy-Gas,Revenue
08/01/2020,C/09/90527,961.26,0,Bradford Met District Council,FAIRWEATHER GREEN,28502,Contract Cleaning,Revenue
08/01/2020,14772379,1383.31,0,Corona Energy,PROPERTY,25001,Energy-Gas,Revenue
08/01/2020,C/09/90526,533.99,0,Bradford Council,ODSAL,28502,Contract Cleaning,Revenue
08/01/2020,C/09/90561,600.79,0,Bradford Council,KEIGHLEY,28502,Contract Cleaning,Revenue
08/01/2020,14772377,945.9,0,Corona Energy,Cleckheaton,25001,Energy-Gas,Revenue
08/01/2020,14772280,1138.41,0,Corona Energy,NEW CONTROL PROJECT,25001,Energy-Gas,Revenue
08/01/2020,C/09/90562,533.99,0,Bradford Council,Shipley,28502,Contract Cleaning,Revenue
08/01/2020,14772255,962.05,0,Corona Energy,Killingbeck,25001,Energy-Gas,Revenue
08/01/2020,14772254,622.74,0,Corona Energy,Rastrick,25001,Energy-Gas,Revenue
08/01/2020,14772399,1745.44,0,Corona Energy,WAKEFIELD,25001,Energy-Gas,Revenue
08/01/2020,14772253,763.64,0,Corona Energy,Dewsbury ,25001,Energy-Gas,Revenue
08/01/2020,14772229,3167.25,0,Corona Energy,PROPERTY,25001,Energy-Gas,Revenue
09/01/2020,C/09/90552,4058.53,0,Bradford Council,HALIFAX,28502,Contract Cleaning,Revenue
09/01/2020,C/09/90564,1068.06,0,Bradford Council,BRADFORD,28502,Contract Cleaning,Revenue
09/01/2020,C/09/90502,533.99,0,Bradford Council,BRADFORD,28502,Contract Cleaning,Revenue
09/01/2020,85,3200,0,Michael Wood Management Consultancy,FINANCE SECTION,42511,Consultancy Fees,Revenue
09/01/2020,SIN1328140,8949.84,0,PPL PRS Ltd,FIRE LEGAL,42587,Legal Expenses,Revenue
09/01/2020,IN1191200062369,16550.68,0,GTT Communications,Information Technlgy,43018,Wan Rental,Revenue
09/01/2020,4,43200,0,HR Solutions Hub Ltd,RECRUITS,44600,Subscriptions,Revenue
09/01/2020,47222,900,0,Leeds Pallet Co.Ltd.,TRAINING DELIVERY,40006,Training Equ Purch,Revenue
09/01/2020,2019-61,810,0,Daniels Caf�,TRAINING DELIVERY,40502,Food,Revenue
09/01/2020,57328,588.75,0,Ask,SUPPLIES SECTION,40003,Admin/Office Equ Pch,Revenue
09/01/2020,3401384,3042.9,0,Bayford Oil,MOORTOWN,30200,Vehicle Fuel,Revenue
10/01/2020,650056810000007,1457.91,0,Yorkshire Water,Corporate Management and Support,59164,Equipment,Capital
10/01/2020,650056430000004,632.57,0,Yorkshire Water,Corporate Management and Support,59164,Equipment,Capital
10/01/2020,CD20191032431,3275,0,Survitec Service & Distribution Ltd,Corporate Management and Support,59164,Equipment,Capital
10/01/2020,2625,3000,0,Hearfirst,TRAINING DELIVERY,19235,Emp Svc Tng,Revenue
10/01/2020,SLF/00002249,5520,0,Kirklees College,TRAINING DELIVERY,19203,Non Uniformed,Revenue
10/01/2020,OP/I042564,3075,0,Angloco Ltd,TRAINING DELIVERY,19241,Service Supp Tng,Revenue
10/01/2020,2624,2750,0,Hearfirst,TRAINING DELIVERY,19235,Emp Svc Tng,Revenue
10/01/2020,1138959,3000,0,Fireangel Safety Technology Ltd,Corporate Management and Support,59164,Equipment,Capital
10/01/2020,650043730000001,978.97,0,Yorkshire Water,Corporate Management and Support,59164,Equipment,Capital
10/01/2020,SN3153649,568.97,0,Elis UK Ltd,SUPPLIES SECTION,41900,Laundry,Revenue
10/01/2020,1138954,1500,0,Fireangel Safety Technology Ltd,Corporate Management and Support,59164,Equipment,Capital
10/01/2020,1074,1355,0,Wm Projects Ltd,Corporate Management and Support,59052,Cont-External,Capital
10/01/2020,1072,2880,0,Wm Projects Ltd,Corporate Management and Support,59052,Cont-External,Capital
10/01/2020,9756,750,0,Ioda Limited,EMPLOYEE RESOURCING,19201,Training Fees,Revenue
13/01/2020,89000087137,3000,0,West Yorkshire Pension Fund,FINANCE SECTION,40205,Book/Publications,Revenue
13/01/2020,28965,16721.32,0,BCS Electrics Ltd,TRAINING DELIVERY,21014,General Rep & Maint,Revenue
13/01/2020,36345427,1559.44,0,M I Supplies Ltd,SUPPLIES SECTION,28501,Cleaning Consumables,Revenue
13/01/2020,53179,1820,0,Speedings Limited,TRAINING DELIVERY,40006,Training Equ Purch,Revenue
13/01/2020,25799,625,0,National Compliance & Risk Qualific,TRAINING DELIVERY,19205,Health & Safety,Revenue
13/01/2020,9204,7425,0,Wharfedale Construction Ltd,Corporate Management and Support,59052,Cont-External,Capital
13/01/2020,1139210,7800,0,Fireangel Safety Technology Ltd,Corporate Management and Support,59164,Equipment,Capital
13/01/2020,1139107,1500,0,Fireangel Safety Technology Ltd,Corporate Management and Support,59164,Equipment,Capital
13/01/2020,3369,900,0,Aire Valley Tree Services Ltd,PROPERTY,24000,Grounds Maintenance,Revenue
13/01/2020,MC/256,1125,0,Montgomery & Coupers Ltd,PROPERTY,42511,Consultancy Fees,Revenue
13/01/2020,INV-6479,909.49,0,Pulse Cashflow Finance,PONTEFRACT,28502,Contract Cleaning,Revenue
13/01/2020,INV/6427,1378.3,0,Industrial Door Solutions Limited,LEEDS,21006,Appliance Bay Doors,Revenue
13/01/2020,INV/38038,1320,0,DFP Services Limited,HUNSLET,20000,Ann Contract/Service,Revenue
13/01/2020,OP/I260509/44434,1026.54,0,Kingspan Water & Energy Limited,TRAINING DELIVERY,21014,General Rep & Maint,Revenue
13/01/2020,1704,1007.5,0,Advanced Monitoring Limited,PROPERTY,20000,Ann Contract/Service,Revenue
13/01/2020,3066624,760.32,0,Sybs Ltd,FLEET MAINTENANCE,30001,Dir Cost-Spare Parts,Revenue
13/01/2020,7625,1865,0,Right 2 Write Ltd,CORPORATE DIVERSITY,40039,Access to Work Purchase,Revenue
13/01/2020,8,3314,0,Fighting Minds CIC T/a FMS,CORPORATE DIVERSITY,40039,Access to Work Purchase,Revenue
13/01/2020,MJA01528,562.55,0,Mja Consultants,HUDDERSFIELD,21013,Electrical Reps (Fr),Revenue
13/01/2020,RECEIPT#18,672,0,D.V Optical (Openshaw Opticians),Health & Safety,18301,Specialists Fees,Revenue
13/01/2020,52406729,535,0,Volvo Group Uk Ltd,Information Technlgy,43103,ICT Maintenance & Support,Revenue
13/01/2020,SLN/00000062,2760,0,Kirklees College,TRAINING DELIVERY,19203,Non Uniformed,Revenue
14/01/2020,SLN/00000063,2070,0,Kirklees College,TRAINING DELIVERY,19203,Non Uniformed,Revenue
14/01/2020,MC/255,1580,0,Montgomery & Coupers Ltd,Corporate Management and Support,59061,Inst Srv-Commctn,Capital
14/01/2020,768962,950,0,Access Uk Ltd,Corporate Management and Support,59166,Computer Costs,Capital
14/01/2020,TFM738/02,670.5,0,Thomson FM Ltd,PROPERTY,42511,Consultancy Fees,Revenue
14/01/2020,INV/6441,2446.02,0,Industrial Door Solutions Limited,ODSAL,21006,Appliance Bay Doors,Revenue
14/01/2020,IN55825,1123.24,0,BAM FM Limited,BRADFORD,21012,Heating & Mechanical,Revenue
14/01/2020,IN55817,663.75,0,BAM FM Limited,BRADFORD,21009,Plumbing Facilities,Revenue
14/01/2020,5271,31233.28,0,Aspect Building Solutions Limited,Corporate Management and Support,59052,Cont-External,Capital
14/01/2020,1139213,10500,0,Fireangel Safety Technology Ltd,Corporate Management and Support,59164,Equipment,Capital
14/01/2020,1139211,17250,0,Fireangel Safety Technology Ltd,Corporate Management and Support,59164,Equipment,Capital
14/01/2020,SI-781,581.94,0,Cafe Perfection,Wakefield Dist Com,40010,Station Devt Equpmnt,Revenue
14/01/2020,14772281,625.68,0,Corona Energy,Shipley,25001,Energy-Gas,Revenue
14/01/2020,14772401,738.23,0,Corona Energy,CASTLEFORD,25001,Energy-Gas,Revenue
14/01/2020,14772387,1081.84,0,Corona Energy,RAWDON,25001,Energy-Gas,Revenue
14/01/2020,857-51789,746.93,0,Fast Signs (Leeds) Ltd,PROPERTY,21014,General Rep & Maint,Revenue
14/01/2020,69395,4828.52,0,"Richardson Bus Equip Dist Ltd,",SUPPLIES SECTION,40100,Furniture,Revenue
14/01/2020,SI219771,28380,0,Dale Power Solutions Ltd,NEW CONTROL PROJECT,21013,Electrical Reps (Fr),Revenue
14/01/2020,6876,557,0,Geckops Ltd t/a Gecko Property Solu,Cleckheaton,21009,Plumbing Facilities,Revenue
14/01/2020,6291433897,7934.23,0,Leeds City Council,LEEDS,28502,Contract Cleaning,Revenue
15/01/2020,INV000001,6720,0,Primal Academy Ltd,TRAINING DELIVERY,19205,Health & Safety,Revenue
15/01/2020,INV000003,540,0,Primal Academy Ltd,TRAINING DELIVERY,19205,Health & Safety,Revenue
15/01/2020,1020608,850,0,Bytes Security Partnerships Lt,Corporate Management and Support,59166,Computer Costs,Capital
15/01/2020,MC/257,1975,0,Montgomery & Coupers Ltd,Corporate Management and Support,59061,Inst Srv-Commctn,Capital
15/01/2020,CSI00393,248384.34,0,Marshall Building Contractors,Corporate Management and Support,59052,Cont-External,Capital
15/01/2020,6291433907,7934.23,0,Leeds City Council,LEEDS,28502,Contract Cleaning,Revenue
15/01/2020,SI-151459,1116.38,0,Medtree,OPERATIONS EQUIPMENT,Various,Operational Equ Pch,Revenue
15/01/2020,514687G,1317.38,0,Arena Group Limited,COMMAND TRAINING,42201,Photocopier Charges,Revenue
15/01/2020,7402583123,5062.88,0,Dell Corporation,Information Technlgy,43022,ICT Spares & Repairs,Revenue
15/01/2020,7402583455,6094.44,0,Dell Corporation,Information Technlgy,43022,ICT Spares & Repairs,Revenue
15/01/2020,7817,8049.14,0,Tructyre Fleet Management Ltd,FLEET MANAGEMENT,30000,Tyre Purchase,Revenue
15/01/2020,7833,3151.8,0,Tructyre Fleet Management Ltd,FLEET MANAGEMENT,30000,Tyre Purchase,Revenue
15/01/2020,7836,8972.07,0,Tructyre Fleet Management Ltd,FLEET MANAGEMENT,30000,Tyre Purchase,Revenue
15/01/2020,7835,33143.36,0,Tructyre Fleet Management Ltd,FLEET MANAGEMENT,30000,Tyre Purchase,Revenue
15/01/2020,GT2019-075,22200,0,Gartan Technologies Ltd,Corporate Management and Support,59166,Computer Costs,Capital
15/01/2020,MJA01530,21962,0,Mja Consultants,Corporate Management and Support,59058,Fee-External,Capital
15/01/2020,9206,3350,0,Wharfedale Construction Ltd,Corporate Management and Support,59052,Cont-External,Capital
15/01/2020,GT2019-076,8466.67,0,Gartan Technologies Ltd,ICT Strategy,43037,HR & Rostering,Revenue
16/01/2020,YF756105,21653.67,0,Toyota (GB) PLC,Corporate Management and Support,59165,Vehicles & Plant,Capital
16/01/2020,YF756106,21653.67,0,Toyota (GB) PLC,Corporate Management and Support,59165,Vehicles & Plant,Capital
16/01/2020,YF756108,21653.67,0,Toyota (GB) PLC,Corporate Management and Support,59165,Vehicles & Plant,Capital
16/01/2020,YF756107,21653.67,0,Toyota (GB) PLC,Corporate Management and Support,59165,Vehicles & Plant,Capital
16/01/2020,SI-12393-2019,1456,0,Bauer Kompressoren UK Ltd,OPERATIONS EQUIPMENT,40005,Operational Equ Pch,Revenue
16/01/2020,65006318000000X,840.57,0,Yorkshire Water,Corporate Management and Support,59164,Equipment,Capital
16/01/2020,86,3600,0,Michael Wood Management Consultancy,FINANCE SECTION,42511,Consultancy Fees,Revenue
16/01/2020,16691,1206.28,0,Heavy Woollen Textile Co Ltd,SUPPLIES SECTION,Various,Domestic Equ Purch,Revenue
16/01/2020,454478,2881.78,0,OfficeXpress Europe Limited,SUPPLIES SECTION,43106,ICT Consumables,Revenue
16/01/2020,454477,2164.84,0,OfficeXpress Europe Limited,SUPPLIES SECTION,43106,ICT Consumables,Revenue
16/01/2020,51731788,600,0,Mitsubishi Electric Europe B.V,NEW CONTROL PROJECT,20000,Ann Contract/Service,Revenue
17/01/2020,171438,1200,0,Nb Data Ltd,Information Technlgy,43022,ICT Spares & Repairs,Revenue
17/01/2020,BC-12-19-S2284,74723.78,0,Bristol Care,SUPPLIES SECTION,41900,Laundry,Revenue
17/01/2020,CSI00396,84249.92,0,Marshall Building Contractors,Corporate Management and Support,59052,Cont-External,Capital
17/01/2020,28968,11622.07,0,BCS Electrics Ltd,Corporate Management and Support,59052,Cont-External,Capital
17/01/2020,RML-SINV-869495,735,0,The Royal Mint,CORPORATE SERVICES,40215,Annual Review,Revenue
17/01/2020,9209,3264.58,0,Wharfedale Construction Ltd,TRAINING DELIVERY,21014,General Rep & Maint,Revenue
17/01/2020,28995,696.76,0,BCS Electrics Ltd,PONTEFRACT,21013,Electrical Reps (Fr),Revenue
17/01/2020,INV/6517,848,0,Industrial Door Solutions Limited,BRADFORD,21006,Appliance Bay Doors,Revenue
20/01/2020,TFM716/02,4119.63,0,Thomson FM Ltd,PROPERTY,20000,Ann Contract/Service,Revenue
20/01/2020,INV-1927,1972,0,Robert Whetham Associates,PROPERTY,20002,Contract Management,Revenue
20/01/2020,24000,5650,0,Thornley & Lumb Partnership Ltd,PROPERTY,20002,Contract Management,Revenue
20/01/2020,INV-3069,8663.51,0,The Phoenix Works,Corporate Management and Support,59052,Cont-External,Capital
20/01/2020,50109,506,0,Concept Engineerings Ltd,OPERATIONS EQUIPMENT,40005,Operational Equ Pch,Revenue
20/01/2020,7402583746,783.1,0,Dell Corporation,SUPPLIES SECTION,43106,ICT Consumables,Revenue
20/01/2020,1079,2257.45,0,Wm Projects Ltd,Corporate Management and Support,59052,Cont-External,Capital
20/01/2020,1078,975,0,Wm Projects Ltd,Corporate Management and Support,59052,Cont-External,Capital
21/01/2020,E2012086221,2896.37,0,Allstar Business Solutions Ltd,MORLEY,30200,Vehicle Fuel,Revenue
21/01/2020,145530,920,0,Physio Med Ltd,Health & Safety,18301,Specialists Fees,Revenue
21/01/2020,93480594,6429.52,0,Vodafone (Mobiles),Information Technlgy,43017,Corporate Mobile Phone,Revenue
21/01/2020,3066830,760.32,0,Sybs Ltd,FLEET MAINTENANCE,30001,Dir Cost-Spare Parts,Revenue
21/01/2020,6578621,1030.03,0,Michael Page International Recruitm,PUBLIC INFORMATION,15001,Admin - Basic Pay,Revenue
21/01/2020,6578755,818.38,0,Michael Page International Recruitm,PUBLIC INFORMATION,15001,Admin - Basic Pay,Revenue
21/01/2020,3465040,2627,0,Bayford Oil,HUDDERSFIELD,25002,Energy-Fuel Oil,Revenue
21/01/2020,INV-7126,909.49,0,Pulse Cashflow Finance,PONTEFRACT,28502,Contract Cleaning,Revenue
21/01/2020,3056160972,1617.43,0,British Oxygen Co Ltd,FLEET MAINTENANCE,Various,Consumables-Veh Rep,Revenue
21/01/2020,7911,2682.96,0,Tructyre Fleet Management Ltd,FLEET MANAGEMENT,30000,Tyre Purchase,Revenue
21/01/2020,INV-7124,4460.61,0,Pulse Cashflow Finance,Cleckheaton,28502,Contract Cleaning,Revenue
21/01/2020,INV-7125,5540.26,0,Pulse Cashflow Finance,CASTLEFORD,28502,Contract Cleaning,Revenue
21/01/2020,INV-7123,8668,0,Pulse Cashflow Finance,PROPERTY,28502,Contract Cleaning,Revenue
21/01/2020,7831,2584.61,0,Tructyre Fleet Management Ltd,FLEET MANAGEMENT,30000,Tyre Purchase,Revenue
21/01/2020,ARL02915,3060,0,Airmax Remote,Information Technlgy,43103,ICT Maintenance & Support,Revenue
22/01/2020,1082,620,0,Wm Projects Ltd,HUNSLET,21014,General Rep & Maint,Revenue
22/01/2020,196294,765,0,Angus Heron Limited,PROPERTY,21009,Plumbing Facilities,Revenue
22/01/2020,7402580332,3564.62,0,Dell Corporation,Information Technlgy,43022,ICT Spares & Repairs,Revenue
22/01/2020,7402583361,1768.92,0,Dell Corporation,TRAINING DELIVERY,40006,Training Equ Purch,Revenue
22/01/2020,7402583947,1738.37,0,Dell Corporation,EMPLOYMENT SERVICES,43106,ICT Consumables,Revenue
22/01/2020,7402584120,2195.08,0,Dell Corporation,FLEET MANAGEMENT,43106,ICT Consumables,Revenue
22/01/2020,7402584725,6171.3,0,Dell Corporation,Information Technlgy,43022,ICT Spares & Repairs,Revenue
22/01/2020,EXI1375656,587.14,51.44,Lex Autolease,Wakefield Dist Com,34001,Vehicle Leasing,Revenue
22/01/2020,IN56196,686.95,0,BAM FM Limited,PROPERTY,21014,General Rep & Maint,Revenue
22/01/2020,EXI1375270,1252.85,0,Lex Autolease,FLEET MANAGEMENT,34001,Vehicle Leasing,Revenue
22/01/2020,65006545000000X,978.97,0,Yorkshire Water,Corporate Management and Support,59164,Equipment,Capital
22/01/2020,650065460000008,632.57,0,Yorkshire Water,Corporate Management and Support,59164,Equipment,Capital
22/01/2020,650065470000006,1457.91,0,Yorkshire Water,Corporate Management and Support,59164,Equipment,Capital
22/01/2020,650065440000001,978.97,0,Yorkshire Water,Corporate Management and Support,59164,Equipment,Capital
22/01/2020,650065430000003,1457.91,0,Yorkshire Water,Corporate Management and Support,59164,Equipment,Capital
22/01/2020,650016210000001,632.57,0,Yorkshire Water,Corporate Management and Support,59164,Equipment,Capital
22/01/2020,650065490000002,697.57,0,Yorkshire Water,Corporate Management and Support,59164,Equipment,Capital
22/01/2020,INV-1941,3874,0,Robert Whetham Associates,Corporate Management and Support,59058,Fee-External,Capital
22/01/2020,24059,7500,0,Thornley & Lumb Partnership Ltd,Corporate Management and Support,59058,Fee-External,Capital
22/01/2020,IN56205,2574.62,0,BAM FM Limited,TRAINING DELIVERY,21012,Heating & Mechanical,Revenue
22/01/2020,52279,951,0,Wt Partnership,Corporate Management and Support,59058,Fee-External,Capital
22/01/2020,EXI1380408,1566.43,0,Lex Autolease,FLEET MANAGEMENT,34001,Vehicle Leasing,Revenue
22/01/2020,110644,1280.72,0,Redfern Travel Ltd,FINANCE SECTION,35000,Public Transport,Revenue
22/01/2020,37089877,700,0,M I Supplies Ltd,SUPPLIES SECTION,40026,First Aid Equ Pch,Revenue
22/01/2020,52277,720,0,Wt Partnership,FAIRWEATHER GREEN,21014,General Rep & Maint,Revenue
22/01/2020,29020,666.54,0,BCS Electrics Ltd,TRAINING DELIVERY,21013,Electrical Reps (Fr),Revenue
23/01/2020,13174,1642.84,0,South Yorks Fire & Rescue,TRAINING DELIVERY,19241,Service Supp Tng,Revenue
23/01/2020,145785,2951,0,Physio Med Ltd,Health & Safety,18301,Specialists Fees,Revenue
23/01/2020,6604,6992.81,0,Fire Hosetech,HUDDERSFIELD,Various,Energy-Fuel Oil,Revenue
23/01/2020,6605,8157.69,0,Fire Hosetech,OPERATIONS EQUIPMENT,40005,Operational Equ Pch,Revenue
23/01/2020,3149753,590,0,CIPFA Business Limited,FINANCE SECTION,43501,Conference Expenses,Revenue
23/01/2020,SI-678,5895,0,Cafe Perfection Ltd,BINGLEY,20000,Ann Contract/Service,Revenue
24/01/2020,7965958,1164.47,0,Chubb Fire Ltd,OPERATIONS EQUIPMENT,40005,Operational Equ Pch,Revenue
24/01/2020,SS142,3528,0,D Ellis Services,PROPERTY,24000,Grounds Maintenance,Revenue
24/01/2020,650065480000004,597.74,0,Yorkshire Water,Corporate Management and Support,59164,Equipment,Capital
24/01/2020,773167,950,0,Access Uk Ltd,Corporate Management and Support,59166,Computer Costs,Capital
24/01/2020,SS143,2400,0,D Ellis Services,NEW CONTROL PROJECT,24000,Grounds Maintenance,Revenue
24/01/2020,14995,5570,0,Bradshaw Gass & Hope Llp,Corporate Management and Support,59058,Fee-External,Capital
24/01/2020,14993,1700,0,Bradshaw Gass & Hope Llp,Corporate Management and Support,59058,Fee-External,Capital
24/01/2020,IN56201,989.96,0,BAM FM Limited,LEEDS,21012,Heating & Mechanical,Revenue
24/01/2020,14994,2325,0,Bradshaw Gass & Hope Llp,PROPERTY,42613,Feasibility Study,Revenue
24/01/2020,29021,7350.64,0,BCS Electrics Ltd,TRAINING DELIVERY,21013,Electrical Reps (Fr),Revenue
24/01/2020,CN30012670,1416.24,0,Citron Hygiene UK Limited,BINGLEY,20000,Ann Contract/Service,Revenue
27/01/2020,3478740,3135.3,0,Bayford Oil,KEIGHLEY,30200,Vehicle Fuel,Revenue
27/01/2020,22307,656.22,0,Reactec Limited,FLEET MAINTENANCE,30005,Workshop Equipment,Revenue
27/01/2020,216725046,1513.9,0,FUCHS LUBRICANTS (UK) LTD,FLEET MAINTENANCE,30102,Dir Cost-Oil & Lubes,Revenue
27/01/2020,LGWFQYHW,1046.56,0,Npower Ltd,PONTEFRACT,25000,Energy-Electric,Revenue
27/01/2020,LGWFQYHR,1397.07,0,Npower Ltd,Killingbeck,25000,Energy-Electric,Revenue
27/01/2020,LGWFQYHV,2152.84,0,Npower Ltd,BRADFORD,25000,Energy-Electric,Revenue
28/01/2020,LGWFQYHT,5103.94,0,Npower Ltd,NEW CONTROL PROJECT,25000,Energy-Electric,Revenue
28/01/2020,LGWFQYHS,719.89,0,Npower Ltd,Shipley,25000,Energy-Electric,Revenue
28/01/2020,LGWFQYHY,916.97,0,Npower Ltd,ROTHWELL,25000,Energy-Electric,Revenue
28/01/2020,LGWFQYHQ,924.72,0,Npower Ltd,Dewsbury ,25000,Energy-Electric,Revenue
28/01/2020,LGWFQYHP,986.81,0,Npower Ltd,Rastrick,25000,Energy-Electric,Revenue
28/01/2020,LGWFQYHN,9575.02,0,Npower Ltd,PROPERTY,25000,Energy-Electric,Revenue
28/01/2020,LGWFQYHZ,1320.87,0,Npower Ltd,LEEDS,25000,Energy-Electric,Revenue
28/01/2020,LGWFQYHX,615.65,0,Npower Ltd,NORMANTON,25000,Energy-Electric,Revenue
28/01/2020,650050010000000,978.97,0,Yorkshire Water,Corporate Management and Support,59164,Equipment,Capital
28/01/2020,650054490000000,1457.91,0,Yorkshire Water,Corporate Management and Support,59164,Equipment,Capital
28/01/2020,MRI9651096,19341.36,1319.39,Lex Autolease,FLEET MANAGEMENT,34001,Vehicle Leasing,Revenue
28/01/2020,6291433910,7934.23,0,Leeds City Council,LEEDS,28502,Contract Cleaning,Revenue
28/01/2020,EXI1382977,1753.99,0,Lex Autolease,FLEET MANAGEMENT,34001,Vehicle Leasing,Revenue
28/01/2020,INV-7746,1707.26,0,Cell:cm Ltd,PROPERTY,20002,Contract Management,Revenue
28/01/2020,87,800,0,Michael Wood Management Consultancy,FINANCE SECTION,42511,Consultancy Fees,Revenue
28/01/2020,148199,2370.9,0,Southcombe Brothers Ltd,SUPPLIES SECTION,41500,Clothing,Revenue
28/01/2020,38836,1049.6,0,Supply +,FLEET MAINTENANCE,30001,Dir Cost-Spare Parts,Revenue
28/01/2020,192552/220801,880,0,Co-Star Electronic Co Ltd,FLEET MANAGEMENT,43027,Mob Phone Installtn,Revenue
28/01/2020,PMOL-095-2019,1250,0,PMO Learning Ltd,EMPLOYEE RESOURCING,19201,Training Fees,Revenue
28/01/2020,PMA3138,3052.92,0,Pma International Ltd,EMPLOYEE RESOURCING,42511,Consultancy Fees,Revenue
28/01/2020,INV-7800,600,0,Cell:cm Ltd,PROPERTY,20002,Contract Management,Revenue
28/01/2020,EXI1379317,1050,93.61,Lex Autolease,Various,34001,Vehicle Leasing,Revenue
29/01/2020,5020,820,0,The Outreach Organisation Ltd,TRAINING DELIVERY,19238,Ops Res Tng,Revenue
29/01/2020,5019,820,0,The Outreach Organisation Ltd,TRAINING DELIVERY,19238,Ops Res Tng,Revenue
29/01/2020,EXI1378683,2566.9,0,Lex Autolease,FLEET MANAGEMENT,34001,Vehicle Leasing,Revenue
29/01/2020,103072A,3850.74,0,Townley Network Solutions Ltd,STANNINGLEY,43015,Landlines Call Charges,Revenue
29/01/2020,LGWFRRV9,4825.47,0,Npower Ltd,WAKEFIELD,25000,Energy-Electric,Revenue
29/01/2020,LGWFRRV8,2298.28,0,Npower Ltd,Slaithwaite,25000,Energy-Electric,Revenue
29/01/2020,LGWFRRWG,2446.27,0,Npower Ltd,Cleckheaton,25000,Energy-Electric,Revenue
29/01/2020,IWYHMCPD003,7600,0,Green Risk Assessment Ltd,TRAINING DELIVERY,19238,Ops Res Tng,Revenue
29/01/2020,LGWFRRVW,1987.31,0,Npower Ltd,FAIRWEATHER GREEN,25000,Energy-Electric,Revenue
29/01/2020,51473,1842,0,Ability Smart Ltd,CORPORATE DIVERSITY,40039,Access to Work Purchase,Revenue
29/01/2020,LGWFRRVX,1731.83,0,Npower Ltd,FEATHERSTONE,25000,Energy-Electric,Revenue
29/01/2020,6582741,818.38,0,Michael Page International Recruitm,PUBLIC INFORMATION,15001,Admin - Basic Pay,Revenue
29/01/2020,LGWFRRVY,778.9,0,Npower Ltd,Holmfirth,25000,Energy-Electric,Revenue
29/01/2020,LGWFRRVZ,598.09,0,Npower Ltd,Meltham,25000,Energy-Electric,Revenue
29/01/2020,LGWFRRV2,2270.22,0,Npower Ltd,MIRFIELD,25000,Energy-Electric,Revenue
29/01/2020,LGWFRRV3,1722.17,0,Npower Ltd,MOORTOWN,25000,Energy-Electric,Revenue
29/01/2020,LGWFRRV4,926.43,0,Npower Ltd,MORLEY,25000,Energy-Electric,Revenue
29/01/2020,175156969,14741.91,0,Asics Uk Ltd,SUPPLIES SECTION,41500,Clothing,Revenue
29/01/2020,LGWFRRV6,549.77,0,Npower Ltd,OTLEY,25000,Energy-Electric,Revenue
29/01/2020,LGWFRRV7,663.5,0,Npower Ltd,Skelmanthorpe,25000,Energy-Electric,Revenue
29/01/2020,LGWFRRWB,1012.36,0,Npower Ltd,WETHERBY,25000,Energy-Electric,Revenue
29/01/2020,779,1239,0,Fresco Graphics Displays Ltd,PUBLIC INFORMATION,40221,Publty/Promtn/Media,Revenue
29/01/2020,386467,3008.45,0,AMP Biomass Fuel Ltd t/a AMP Clean,PROPERTY,25003,Energy-Solid Fuel,Revenue
29/01/2020,58033,564,0,Ask,SUPPLIES SECTION,40100,Furniture,Revenue
29/01/2020,58034,1190,0,Ask,Cleckheaton,Various,Station Devt Equpmnt,Revenue
29/01/2020,LGWFRRWC,3829.09,0,Npower Ltd,HUDDERSFIELD,25000,Energy-Electric,Revenue
29/01/2020,LGWFRRWD,2937.17,0,Npower Ltd,HUNSLET,25000,Energy-Electric,Revenue
29/01/2020,LGWFRRWF,1803.77,0,Npower Ltd,CASTLEFORD,25000,Energy-Electric,Revenue
29/01/2020,LGWFRRWH,4660.91,0,Npower Ltd,STANNINGLEY,25000,Energy-Electric,Revenue
30/01/2020,1534541-01,-825,0,Crossroads Truck & Bus Ltd,FLEET MAINTENANCE,30001,Dir Cost-Spare Parts,Revenue
30/01/2020,1817360-01,-702.61,0,Crossroads Truck & Bus Ltd,FLEET MAINTENANCE,30001,Dir Cost-Spare Parts,Revenue
30/01/2020,1534507-01,600.8,0,Crossroads Truck & Bus Ltd,FLEET MAINTENANCE,30001,Dir Cost-Spare Parts,Revenue
30/01/2020,2057173-01,1137.55,0,Crossroads Truck & Bus Ltd,FLEET MANAGEMENT,30004,Rep-Ext Contractors,Revenue
30/01/2020,INV02860,6146,0,3Tc Software Ltd,Information Technlgy,43103,ICT Maintenance & Support,Revenue
30/01/2020,2544234,58040.01,0,Home Office,Operations,43026,Radio Licensing,Revenue
30/01/2020,28961,558,0,BCS Electrics Ltd,Killingbeck,21013,Electrical Reps (Fr),Revenue
30/01/2020,28959,501.6,0,BCS Electrics Ltd,SILSDEN,21013,Electrical Reps (Fr),Revenue
30/01/2020,28962,1390.8,0,BCS Electrics Ltd,PONTEFRACT,21013,Electrical Reps (Fr),Revenue
30/01/2020,28963,866.4,0,BCS Electrics Ltd,Dewsbury ,21013,Electrical Reps (Fr),Revenue
30/01/2020,C/HT189432,7950,0,Civica UK Ltd,Information Technlgy,43103,ICT Maintenance & Support,Revenue
30/01/2020,E2012143863,2151.94,0,Allstar Business Solutions Ltd,MORLEY,30200,Vehicle Fuel,Revenue
30/01/2020,INV-7166,1398.06,0,Pulse Cashflow Finance,PROPERTY,28502,Contract Cleaning,Revenue
30/01/2020,INV-7168,893.59,0,Pulse Cashflow Finance,CASTLEFORD,28502,Contract Cleaning,Revenue
30/01/2020,SMS1920-1544,5000,0,SOTER Management Systems Ltd,Information Technlgy,43103,ICT Maintenance & Support,Revenue
31/01/2020,INV-7167,719.45,0,Pulse Cashflow Finance,Cleckheaton,28502,Contract Cleaning,Revenue
31/01/2020,IN1191200064876,16550.68,0,GTT Communications,Information Technlgy,43018,Wan Rental,Revenue
31/01/2020,58140,1309,0,Ask,SUPPLIES SECTION,40100,Furniture,Revenue
31/01/2020,58139,952,0,Ask,Slaithwaite,40010,Station Devt Equpmnt,Revenue
31/01/2020,202008,2633,0,Gartan Technologies Ltd,ICT Strategy,43037,HR & Rostering,Revenue
31/01/2020,650068560000004,692.57,0,Yorkshire Water,Corporate Management and Support,59164,Equipment,Capital
31/01/2020,65006853000000X,696.57,0,Yorkshire Water,Corporate Management and Support,59164,Equipment,Capital
31/01/2020,1797,1007.75,0,Advanced Monitoring Limited,PROPERTY,20000,Ann Contract/Service,Revenue
31/01/2020,202008,2633,0,Gartan Technologies Ltd,ICT Strategy,43037,HR & Rostering,Revenue
31/01/2020,650068560000004,692.57,0,Yorkshire Water,Corporate Management and Support,59164,Equipment,Capital
31/01/2020,65006853000000X,696.57,0,Yorkshire Water,Corporate Management and Support,59164,Equipment,Capital
31/01/2020,1797,1007.75,0,Advanced Monitoring Limited,PROPERTY,20000,Ann Contract/Service,Revenue
03/02/2020,2601,52266.67,,Trafficlear Ltd,Corporate Management and Support,59165,Vehicles & Plant,Capital
03/02/2020,28688,2929.61,,BCS Electrics Ltd,TRAINING DELIVERY,21013,Electrical Reps (Fr),Revenue
03/02/2020,29089,841.59,,BCS Electrics Ltd,WAKEFIELD,21013,Electrical Reps (Fr),Revenue
03/02/2020,42084,1557,,Intellitec Mv,PROPERTY,21013,Electrical Reps (Fr),Revenue
03/02/2020,773282,950,,Access Uk Ltd,Corporate Management and Support,59166,Computer Costs,Capital
03/02/2020,INV-2066,1742.5,,2H Architecture Limited,Corporate Management and Support,59058,Fee-External,Capital
03/02/2020,1016,796,,Systemes & Telecommunications Ltd,Information Technlgy,43022,ICT Spares & Repairs,Revenue
03/02/2020,24036,95727.7,,Mitton Mechanical Services Ltd,Corporate Management and Support,59052,Cont-External,Capital
03/02/2020,14071,1440,,Machenair Limited,Corporate Management and Support,59052,Cont-External,Capital
03/02/2020,MC/260,675,,Montgomery & Coupers Ltd,PROPERTY,42511,Consultancy Fees,Revenue
04/02/2020,9335,10732,,Foulds Lifts,Corporate Management and Support,59052,Cont-External,Capital
04/02/2020,INV-0173,2016,,R3 Safety & Rescue Limited,TRAINING DELIVERY,19223,Extrication,Revenue
04/02/2020,INV-1893,755,,Robert Whetham Associates,HUDDERSFIELD,21013,Electrical Reps (Fr),Revenue
04/02/2020,2928,877.5,,Goliath Footwear Ltd,SUPPLIES SECTION,41500,Clothing,Revenue
04/02/2020,SI-812,730,,Cafe Perfection Ltd,HUDDERSFIELD,21013,Electrical Reps (Fr),Revenue
04/02/2020,515467G,1572.01,,Arena Group Limited,CORPORATE SERVICES,42201,Photocopier Charges,Revenue
04/02/2020,INV/39525,1020,,DFP Services Limited,Various,20000,Ann Contract/Service,Revenue
04/02/2020,C/10/90646,533.99,,Bradford Council,ODSAL,28502,Contract Cleaning,Revenue
04/02/2020,C/10/90709,533.99,,Bradford Council,Shipley New,28502,Contract Cleaning,Revenue
04/02/2020,C/10/90708,600.79,,Bradford Council,KEIGHLEY,28502,Contract Cleaning,Revenue
04/02/2020,SI-12430-2020,2360,,Bauer Kompressoren UK Ltd,OPERATIONS EQUIPMENT,40005,Operational Equ Pch,Revenue
04/02/2020,C/10/90647,961.26,,Bradford Council,FAIRWEATHER GREEN,28502,Contract Cleaning,Revenue
04/02/2020,SI-12433-2020,968.94,,Bauer Kompressoren UK Ltd,OPERATIONS EQUIPMENT,40005,Operational Equ Pch,Revenue
04/02/2020,BLUE8790WYF,698,,Bluetownonline Limited,EMPLOYMENT SERVICES,18100,Staff Advertising,Revenue
04/02/2020,C/10/90667,4058.53,,Bradford Council,Various,28502,Contract Cleaning,Revenue
04/02/2020,C/10/90711,1068.06,,Bradford Council,BRADFORD,28502,Contract Cleaning,Revenue
04/02/2020,C/10/90648,533.99,,Bradford Council,BRADFORD,28502,Contract Cleaning,Revenue
05/02/2020,89000000000,18980.9,,West Yorkshire Pension Fund,Pensions Account,18600,Pension Costs,Revenue
05/02/2020,25572270AC010111,26564.07,,British Telecom,Information Technlgy,43103,ICT Maintenance & Support,Revenue
05/02/2020,MC/261,790,,Montgomery & Coupers Ltd,Corporate Management and Support,59061,Inst Srv-Commctn,Capital
05/02/2020,INV02337541,1480,,Lanes Group plc,COOKRIDGE,21009,Plumbing Facilities,Revenue
05/02/2020,SS144,2340,,D Ellis Services,Various,24000,Grounds Maintenance,Revenue
05/02/2020,3504581,3152.4,,Bayford Oil,BRADFORD,30200,Vehicle Fuel,Revenue
05/02/2020,3511411,4203.2,,Bayford Oil,ILLINGWORTH,30200,Vehicle Fuel,Revenue
05/02/2020,3546288,3657.85,,Bayford Oil,ODSAL,30200,Vehicle Fuel,Revenue
05/02/2020,7970081261,500,,Mitchell Powersystems,FLEET MAINTENANCE,30001,Dir Cost-Spare Parts,Revenue
05/02/2020,1535299-01,885.2,,Crossroads Truck & Bus Ltd,FLEET MAINTENANCE,30001,Dir Cost-Spare Parts,Revenue
05/02/2020,ARCV326475,990,,Alliance Automotive UK CV Ltd T/a,FLEET MAINTENANCE,30001,Dir Cost-Spare Parts,Revenue
05/02/2020,ARCV328486,1079.5,,Alliance Automotive UK CV Ltd T/a,FLEET MAINTENANCE,30001,Dir Cost-Spare Parts,Revenue
05/02/2020,52278,951,,Wt Partnership,Corporate Management and Support,59058,Fee-External,Capital
05/02/2020,43831,5060,,Dr N A L Smith (Medical Services) L,Health & Safety,42510,Client Med Fees/Exps,Revenue
05/02/2020,6585399,818.38,,Michael Page International Recruitm,PUBLIC INFORMATION,15001,Admin - Basic Pay,Revenue
05/02/2020,14400,860,,West Yorkshire Windscreens Ltd,FLEET MANAGEMENT,30004,Rep-Ext Contractors,Revenue
05/02/2020,14400,1015,,West Yorkshire Windscreens Ltd,FLEET MANAGEMENT,30004,Rep-Ext Contractors,Revenue
05/02/2020,14400,580,,West Yorkshire Windscreens Ltd,FLEET MANAGEMENT,30004,Rep-Ext Contractors,Revenue
05/02/2020,EC20330897,775,,Kcom,Information Technlgy,43018,Wan Rental,Revenue
05/02/2020,246162,1046.63,,J R Industries Ltd,FLEET MAINTENANCE,30001,Dir Cost-Spare Parts,Revenue
05/02/2020,9105903400191230,10809.04,,Scottish Water Business Stream Ltd,Various,26500,Water - Metered,Revenue
05/02/2020,CSL18337,10250,,Chief Fire Officers Assoc,TRAINING DELIVERY,19236,Finance Tng,Revenue
05/02/2020,0940000048-086,3054.13,,Airwave Solutions Ltd,Information Technlgy,43103,ICT Maintenance & Support,Revenue
06/02/2020,7402589143,1821.48,,Dell Corporation,TRAINING DELIVERY,40006,Training Equ Purch,Revenue
06/02/2020,ARL03166,2865,,Airmax Remote,Information Technlgy,43103,ICT Maintenance & Support,Revenue
06/02/2020,EXI1385193,582.69,31.13,Lex Autolease,Various,34001,Vehicle Leasing,Revenue
06/02/2020,65006917000000X,1457.91,,Yorkshire Water,Corporate Management and Support,59164,Equipment,Capital
06/02/2020,EXI1385940,703.71,58.93,Lex Autolease,Various,34001,Vehicle Leasing,Revenue
06/02/2020,20000171,693.57,,Godiva Ltd,FLEET MAINTENANCE,30001,Dir Cost-Spare Parts,Revenue
06/02/2020,9782,1390,,Ioda Limited,TRAINING DELIVERY,19235,Emp Svc Tng,Revenue
06/02/2020,UK10/102019/9926,1604,,Vodafone Connect,"Emergency Serv, Comms, Programme - WY",43042,Direct Network Service Provider,Revenue
06/02/2020,UK10/112019/1474,1604,,Vodafone Connect,"Emergency Serv, Comms, Programme - WY",43042,Direct Network Service Provider,Revenue
06/02/2020,UK10/122019/3867,1604,,Vodafone Connect,"Emergency Serv, Comms, Programme - WY",43042,Direct Network Service Provider,Revenue
06/02/2020,UK10/012020/6525,1604,,Vodafone Connect,"Emergency Serv, Comms, Programme - WY",43042,Direct Network Service Provider,Revenue
06/02/2020,29146,532.3,,BCS Electrics Ltd,Ossett New,21013,Electrical Reps (Fr),Revenue
06/02/2020,YFSI4033211,2142.87,,Police And Crime Commissioner WY,TRAINING DELIVERY,19238,Ops Res Tng,Revenue
06/02/2020,3656,1235,,SFJ Awards Ltd,Various,19203,Non Uniformed,Revenue
06/02/2020,3506787,2627,,Bayford Oil,LEEDS,30200,Vehicle Fuel,Revenue
06/02/2020,2910193052,1411.1,,Draeger Ltd,OPERATIONS EQUIPMENT,40005,Operational Equ Pch,Revenue
06/02/2020,2545335,58040.01,,Home Office,Operations,43026,Radio Licensing,Revenue
06/02/2020,148304,5319.15,,Southcombe Brothers Ltd,SUPPLIES SECTION,41500,Clothing,Revenue
06/02/2020,14050579,2257.6,,Palm Equipment Int Ltd,OPERATIONS EQUIPMENT,40005,Operational Equ Pch,Revenue
07/02/2020,29138,1122.58,,BCS Electrics Ltd,Corporate Management and Support,59052,Cont-External,Capital
07/02/2020,OP/I339398,900,,Span Set Ltd,FLEET MAINTENANCE,30005,Workshop Equipment,Revenue
10/02/2020,MC/263,790,,Montgomery & Coupers Ltd,PROPERTY,42511,Consultancy Fees,Revenue
10/02/2020,29147,2053.02,,BCS Electrics Ltd,Corporate Management and Support,59052,Cont-External,Capital
10/02/2020,8605373082,1146.8,,Kirklees Council,PROPERTY,28506,Refuse Collect/Disp,Revenue
10/02/2020,8605373053,1065.8,,Kirklees Council,PROPERTY,28506,Refuse Collect/Disp,Revenue
10/02/2020,IN56627,544.39,,BAM FM Limited,HALIFAX,21012,Heating & Mechanical,Revenue
10/02/2020,IN56626,1192.5,,BAM FM Limited,PROPERTY,21013,Electrical Reps (Fr),Revenue
10/02/2020,IN56625,826.34,,BAM FM Limited,WAKEFIELD,21012,Heating & Mechanical,Revenue
10/02/2020,IN56622,599.35,,BAM FM Limited,FAIRWEATHER GREEN,21012,Heating & Mechanical,Revenue
10/02/2020,IN56651,504.81,,BAM FM Limited,Rastrick,21012,Heating & Mechanical,Revenue
10/02/2020,IN56650,626.44,,BAM FM Limited,Slaithwaite,21012,Heating & Mechanical,Revenue
10/02/2020,35878469,633.6,,M I Supplies Ltd,SUPPLIES SECTION,28501,Cleaning Consumables,Revenue
10/02/2020,35879245,1872,,M I Supplies Ltd,SUPPLIES SECTION,41500,Clothing,Revenue
10/02/2020,IN56630,527.51,,BAM FM Limited,Dewsbury New,21012,Heating & Mechanical,Revenue
11/02/2020,IN56643,888.6,,BAM FM Limited,STANNINGLEY,21012,Heating & Mechanical,Revenue
11/02/2020,I-012961,4465,,Humberside Fire & Rescue Servi,OPERATIONS EQUIPMENT,40005,Operational Equ Pch,Revenue
11/02/2020,6942,869.15,,Geckops Ltd t/a Gecko Property Solu,Cleckheaton,21009,Plumbing Facilities,Revenue
11/02/2020,1536053-01,3016.25,,Crossroads Truck & Bus Ltd,FLEET MAINTENANCE,30001,Dir Cost-Spare Parts,Revenue
11/02/2020,20-1236,3339,,XACT Consultancy & Training Ltd,TRAINING DELIVERY,19240,Prot/Prev Tng,Revenue
11/02/2020,14733,1300,,West Yorkshire Windscreens Ltd,FLEET MAINTENANCE,30001,Dir Cost-Spare Parts,Revenue
11/02/2020,20000261,814.24,,Godiva Ltd,FLEET MAINTENANCE,30001,Dir Cost-Spare Parts,Revenue
11/02/2020,EXI1383946,649.72,0,Lex Autolease,FLEET MANAGEMENT,34001,Vehicle Leasing,Revenue
11/02/2020,MRI9782671,14387.16,1332.35,Lex Autolease,Various,34001,Vehicle Leasing,Revenue
11/02/2020,IRIN689575,4154.04,0,Lex Autolease,FLEET MANAGEMENT,34001,Vehicle Leasing,Revenue
11/02/2020,3556311,4702.95,,Bayford Oil,FAIRWEATHER GREEN,30200,Vehicle Fuel,Revenue
11/02/2020,3572701,3076.8,,Bayford Oil,HUDDERSFIELD,30200,Vehicle Fuel,Revenue
11/02/2020,3575733,3076.8,,Bayford Oil,Cleckheaton,30200,Vehicle Fuel,Revenue
11/02/2020,3176983,115566,,Bristol Uniforms Ltd,Corporate Management and Support,59164,Equipment,Capital
11/02/2020,3176984,19646.22,,Bristol Uniforms Ltd,Corporate Management and Support,59164,Equipment,Capital
11/02/2020,3176982,85326.23,,Bristol Uniforms Ltd,Corporate Management and Support,59164,Equipment,Capital
11/02/2020,650068570000002,887.58,,Yorkshire Water,Corporate Management and Support,59164,Equipment,Capital
11/02/2020,52503,780,,Wt Partnership,Corporate Management and Support,59058,Fee-External,Capital
11/02/2020,GT2020-017,10400,,Gartan Technologies Ltd,Corporate Management and Support,59166,Computer Costs,Capital
11/02/2020,52504,780,,Wt Partnership,Corporate Management and Support,59058,Fee-External,Capital
11/02/2020,19053,9041,,Ruth Lee Ltd,TRAINING DELIVERY,40006,Training Equ Purch,Revenue
11/02/2020,10891,1238,,T Kirk Forestry,Operatiopnal Training,45119,USAR Chainsaw Recert,Revenue
11/02/2020,246495,703.86,,J R Industries Ltd,FLEET MAINTENANCE,30001,Dir Cost-Spare Parts,Revenue
11/02/2020,29160,3789.7,,BCS Electrics Ltd,Various,20000,Ann Contract/Service,Revenue
11/02/2020,14918436,646.22,,Corona Energy,Shipley New,25001,Energy-Gas,Revenue
12/02/2020,14926787,-1310.15,,Corona Energy,GARFORTH,25001,Energy-Gas,Revenue
12/02/2020,14926737,-1172.24,,Corona Energy,GARFORTH,25001,Energy-Gas,Revenue
12/02/2020,14926788,-1370.9,,Corona Energy,HUNSLET,25001,Energy-Gas,Revenue
12/02/2020,14900000,-1294.59,,Corona Energy,HUNSLET,25001,Energy-Gas,Revenue
12/02/2020,14926773,-969.8,,Corona Energy,Ossett New,25001,Energy-Gas,Revenue
12/02/2020,14926742,-845.03,,Corona Energy,Ossett New,25001,Energy-Gas,Revenue
12/02/2020,14918389,-1388.33,,Corona Energy,STANNINGLEY,25001,Energy-Gas,Revenue
12/02/2020,9783,2250,,Ioda Limited,EMPLOYEE RESOURCING,42511,Consultancy Fees,Revenue
12/02/2020,14918434,5508.5,,Corona Energy,PROPERTY,25001,Energy-Gas,Revenue
12/02/2020,14918420,1104.15,,Corona Energy,TRAINING DELIVERY,25001,Energy-Gas,Revenue
12/02/2020,14918391,1274.82,,Corona Energy,NEW CONTROL PROJECT,25001,Energy-Gas,Revenue
12/02/2020,14918392,1306.11,,Corona Energy,Cleckheaton,25001,Energy-Gas,Revenue
12/02/2020,14918394,1457.55,,Corona Energy,PROPERTY,25001,Energy-Gas,Revenue
12/02/2020,3056593802,2175.68,,British Oxygen Co Ltd,Various,30002,Consumables-Veh Rep,Revenue
12/02/2020,14918398,1593.39,,Corona Energy,COOKRIDGE,25001,Energy-Gas,Revenue
12/02/2020,14918400,1073.33,,Corona Energy,ILLINGWORTH,25001,Energy-Gas,Revenue
12/02/2020,14918401,896.27,,Corona Energy,FAIRWEATHER GREEN,25001,Energy-Gas,Revenue
12/02/2020,14918402,1208.97,,Corona Energy,RAWDON,25001,Energy-Gas,Revenue
12/02/2020,14918403,1683.25,,Corona Energy,LEEDS,25001,Energy-Gas,Revenue
12/02/2020,14918404,2839.93,,Corona Energy,HALIFAX,25001,Energy-Gas,Revenue
12/02/2020,14918408,885.83,,Corona Energy,MOORTOWN,25001,Energy-Gas,Revenue
12/02/2020,14918409,1412.05,,Corona Energy,Slaithwaite,25001,Energy-Gas,Revenue
12/02/2020,48168,645,,Service Desk Institute,Information Technlgy,44600,Subscriptions,Revenue
12/02/2020,14918414,1838.3,,Corona Energy,WAKEFIELD,25001,Energy-Gas,Revenue
12/02/2020,14918415,1722.15,,Corona Energy,KEIGHLEY,25001,Energy-Gas,Revenue
12/02/2020,14918416,832.02,,Corona Energy,CASTLEFORD,25001,Energy-Gas,Revenue
12/02/2020,650054430000001,632.57,,Yorkshire Water,Corporate Management and Support,59164,Equipment,Capital
12/02/2020,14918417,891.2,,Corona Energy,BINGLEY,25001,Energy-Gas,Revenue
12/02/2020,14918418,559.75,,Corona Energy,MORLEY,25001,Energy-Gas,Revenue
12/02/2020,14918419,538.33,,Corona Energy,ROTHWELL,25001,Energy-Gas,Revenue
12/02/2020,14918422,1138.7,,Corona Energy,TODMORDEN,25001,Energy-Gas,Revenue
12/02/2020,14918423,2336.01,,Corona Energy,BRADFORD,25001,Energy-Gas,Revenue
12/02/2020,14918424,701.2,,Corona Energy,TRAINING DELIVERY,25001,Energy-Gas,Revenue
12/02/2020,14918425,501.7,,Corona Energy,NORMANTON,25001,Energy-Gas,Revenue
12/02/2020,14918426,766.69,,Corona Energy,PONTEFRACT,25001,Energy-Gas,Revenue
12/02/2020,2019113,2711.25,,High Impact Development T/a Ei Comp,EMPLOYEE RESOURCING,42511,Consultancy Fees,Revenue
12/02/2020,14918428,902.38,,Corona Energy,ODSAL,25001,Energy-Gas,Revenue
12/02/2020,14918429,552.46,,Corona Energy,South Kirkby,25001,Energy-Gas,Revenue
12/02/2020,14918431,870.65,,Corona Energy,Rastrick,25001,Energy-Gas,Revenue
12/02/2020,14918432,860.98,,Corona Energy,Dewsbury New,25001,Energy-Gas,Revenue
12/02/2020,14918433,1045.84,,Corona Energy,Killingbeck,25001,Energy-Gas,Revenue
12/02/2020,47493,900,,Leeds Pallet Co.Ltd.,TRAINING DELIVERY,40006,Training Equ Purch,Revenue
12/02/2020,CD20201001684,845.12,,Survitec Service & Distribution Ltd,OPERATIONS EQUIPMENT,40005,Operational Equ Pch,Revenue
12/02/2020,14772382,1172.24,,Corona Energy,GARFORTH,25001,Energy-Gas,Revenue
12/02/2020,14918397,1310.15,,Corona Energy,GARFORTH,25001,Energy-Gas,Revenue
12/02/2020,88,5200,,Michael Wood Management Consultancy,FINANCE SECTION,42511,Consultancy Fees,Revenue
12/02/2020,32722,1601.45,,Elevation Recruitment Group Ltd,FINANCE SECTION,15001,Admin - Basic Pay,Revenue
12/02/2020,14772384,1294.59,,Corona Energy,HUNSLET,25001,Energy-Gas,Revenue
12/02/2020,###############################################################################################################################################################################################################################################################,1370.9,,Corona Energy,HUNSLET,25001,Energy-Gas,Revenue
12/02/2020,14772279,845.03,,Corona Energy,Ossett New,25001,Energy-Gas,Revenue
12/02/2020,14918435,969.8,,Corona Energy,Ossett New,25001,Energy-Gas,Revenue
12/02/2020,14772406,1388.33,,Corona Energy,STANNINGLEY,25001,Energy-Gas,Revenue
13/02/2020,2705,709.6,,Jt Services Group,HUDDERSFIELD,21006,Appliance Bay Doors,Revenue
13/02/2020,2701,1845,,Jt Services Group,Corporate Management and Support,59052,Cont-External,Capital
13/02/2020,650068550000006,1457.91,,Yorkshire Water,Corporate Management and Support,59164,Equipment,Capital
13/02/2020,SIN019448,528.53,,Dearnleys,FAIRWEATHER GREEN,21014,General Rep & Maint,Revenue
13/02/2020,70109,1611,,"Richardson Bus Equip Dist Ltd,",Kirklees Dist Com,40010,Station Devt Equpmnt,Revenue
13/02/2020,70108,1611,,"Richardson Bus Equip Dist Ltd,",SUPPLIES SECTION,40100,Furniture,Revenue
13/02/2020,1030014,501.3,,H T E Controls,OPERATIONS EQUIPMENT,40005,Operational Equ Pch,Revenue
13/02/2020,20000242,3600,,Godiva Ltd,TRAINING DELIVERY,19243,Tech Svcs Tng,Revenue
13/02/2020,20-1262,2900,,XACT Consultancy & Training Ltd,TRAINING DELIVERY,19208,Fire Safy Crses-Extl,Revenue
13/02/2020,INV-55032,3341,,Cylix Limited,TRAINING DELIVERY,19235,Emp Svc Tng,Revenue
13/02/2020,2245,4441.4,,Active Informatics Ltd,Information Technlgy,43103,ICT Maintenance & Support,Revenue
13/02/2020,220622,612,,JPIMedia Publishing Ltd,EMPLOYMENT SERVICES,18100,Staff Advertising,Revenue
13/02/2020,70185,1611,,"Richardson Bus Equip Dist Ltd,",SUPPLIES SECTION,40100,Furniture,Revenue
13/02/2020,SIN013471,1920,,1Spatial Group Ltd,Information Technlgy,44600,Subscriptions,Revenue
13/02/2020,PSI1362614,2499.84,,Hj Sock Group Ltd,SUPPLIES SECTION,41500,Clothing,Revenue
13/02/2020,3410,1868,,Karl Austerfield Roofing Ltd,TODMORDEN,21014,General Rep & Maint,Revenue
14/02/2020,INV-943564,800,,Gritit Ltd,PROPERTY,24000,Grounds Maintenance,Revenue
14/02/2020,INV-943798,800,,Gritit Ltd,PROPERTY,24000,Grounds Maintenance,Revenue
14/02/2020,INV-944473,800,,Gritit Ltd,PROPERTY,24000,Grounds Maintenance,Revenue
14/02/2020,INV-946344,800,,Gritit Ltd,PROPERTY,24000,Grounds Maintenance,Revenue
14/02/2020,INV-947000,800,,Gritit Ltd,PROPERTY,24000,Grounds Maintenance,Revenue
14/02/2020,INV-943580,1318.74,,Gritit Ltd,Various,24000,Grounds Maintenance,Revenue
14/02/2020,INV-943812,1318.74,,Gritit Ltd,Various,24000,Grounds Maintenance,Revenue
14/02/2020,INV-944493,1318.74,,Gritit Ltd,Various,24000,Grounds Maintenance,Revenue
14/02/2020,INV-946356,1257.66,,Gritit Ltd,Various,24000,Grounds Maintenance,Revenue
14/02/2020,3409,1868,,Karl Austerfield Roofing Ltd,Corporate Management and Support,59052,Cont-External,Capital
14/02/2020,INV-947064,1257.66,,Gritit Ltd,Various,24000,Grounds Maintenance,Revenue
14/02/2020,10908,2372,,T Kirk Forestry,Operatiopnal Training,45123,Chainsaw Operator,Revenue
17/02/2020,52502,876,,Wt Partnership,Corporate Management and Support,59058,Fee-External,Capital
17/02/2020,1094,960,,Wm Projects Ltd,ODSAL,21008,Internal Fabric,Revenue
17/02/2020,29177,558,,BCS Electrics Ltd,HALIFAX,21013,Electrical Reps (Fr),Revenue
17/02/2020,20000350,859.41,,Godiva Ltd,FLEET MAINTENANCE,30001,Dir Cost-Spare Parts,Revenue
17/02/2020,INV-1946,1972,,Robert Whetham Associates,PROPERTY,20002,Contract Management,Revenue
17/02/2020,PSI103139,1750,,Synergi Software Ltd,TRAINING DELIVERY,19206,Further Educ'N-Extl,Revenue
17/02/2020,3068660,760.32,,Manbat Ltd (T/a SYBS),FLEET MAINTENANCE,30001,Dir Cost-Spare Parts,Revenue
17/02/2020,2017137,1875,,First on Scene Training Ltd,TRAINING DELIVERY,19223,Extrication,Revenue
17/02/2020,3672,1094.5,,SFJ Awards Ltd,TRAINING DELIVERY,19203,Non Uniformed,Revenue
18/02/2020,1536611-01,787.5,,Crossroads Truck & Bus Ltd,FLEET MAINTENANCE,30102,Dir Cost-Oil & Lubes,Revenue
18/02/2020,PAYL3 ALEVY10,17503,,HMRC Cumbernauld,EMPLOYEE RESOURCING,19202,Apprentice Tng,Revenue
18/02/2020,PSI103080,1750,,Synergi Software Ltd,TRAINING DELIVERY,19206,Further Educ'N-Extl,Revenue
18/02/2020,93756040,6504.68,,Vodafone (Mobiles),Information Technlgy,43017,Corporate Mobile Phone,Revenue
18/02/2020,29178,1790.32,,BCS Electrics Ltd,Corporate Management and Support,59052,Cont-External,Capital
18/02/2020,1092,24958,,Wm Projects Ltd,Corporate Management and Support,59052,Cont-External,Capital
18/02/2020,1093,2040,,Wm Projects Ltd,Corporate Management and Support,59052,Cont-External,Capital
18/02/2020,650077210000000,887.58,,Yorkshire Water,Corporate Management and Support,59164,Equipment,Capital
18/02/2020,650077180000000,978.97,,Yorkshire Water,Corporate Management and Support,59164,Equipment,Capital
18/02/2020,650077160000004,978.97,,Yorkshire Water,Corporate Management and Support,59164,Equipment,Capital
18/02/2020,650079810000007,978.97,,Yorkshire Water,Corporate Management and Support,59164,Equipment,Capital
18/02/2020,650079820000005,978.97,,Yorkshire Water,Corporate Management and Support,59164,Equipment,Capital
18/02/2020,650077260000001,978.97,,Yorkshire Water,Corporate Management and Support,59164,Equipment,Capital
18/02/2020,38253,2100,,Hall Lane Recyclers Ltd,TRAINING DELIVERY,40025,Scrap Cars Purch,Revenue
18/02/2020,38261,560,,Hall Lane Recyclers Ltd,LEEDS,40025,Scrap Cars Purch,Revenue
18/02/2020,EXI1393277,1111.24,96.94,Lex Autolease,Various,34001,Vehicle Leasing,Revenue
18/02/2020,EXI1393022,2832.4,0,Lex Autolease,FLEET MANAGEMENT,34001,Vehicle Leasing,Revenue
18/02/2020,80673900,4232.84,,Pageone Communications Ltd,Various,43024,Pagers,Revenue
18/02/2020,INV/6652,7356.07,,Industrial Door Solutions Limited,Various,20000,Ann Contract/Service,Revenue
18/02/2020,ARCV332039,3698,,Alliance Automotive UK CV Ltd T/a,FLEET MAINTENANCE,30001,Dir Cost-Spare Parts,Revenue
18/02/2020,202021,732.9,,Cmt Flexibles Ltd,OPERATIONS EQUIPMENT,40005,Operational Equ Pch,Revenue
18/02/2020,3604011,4746.06,,Bayford Oil,STANNINGLEY,30200,Vehicle Fuel,Revenue
18/02/2020,3611193,3534.3,,Bayford Oil,HUNSLET,30200,Vehicle Fuel,Revenue
18/02/2020,216733082,968.6,,FUCHS LUBRICANTS (UK) LTD,FLEET MAINTENANCE,30102,Dir Cost-Oil & Lubes,Revenue
18/02/2020,IRIN690267,7520.75,697.33,Lex Autolease,CFO/CFO'S SECRETARY,34001,Vehicle Leasing,Revenue
19/02/2020,65007727000000X,978.97,,Yorkshire Water,Corporate Management and Support,59164,Equipment,Capital
19/02/2020,650077190000009,1457.91,,Yorkshire Water,Corporate Management and Support,59164,Equipment,Capital
19/02/2020,650077220000009,1457.91,,Yorkshire Water,Corporate Management and Support,59164,Equipment,Capital
19/02/2020,650077280000008,1457.91,,Yorkshire Water,Corporate Management and Support,59164,Equipment,Capital
19/02/2020,E2012206716,3559.94,,Allstar Business Solutions Ltd,Various,30200,Vehicle Fuel,Revenue
19/02/2020,9804,3000,,Ioda Limited,EMPLOYEE RESOURCING,19201,Training Fees,Revenue
19/02/2020,9983200363,1499.36,,Mitchell Powersystems,FLEET MANAGEMENT,30004,Rep-Ext Contractors,Revenue
19/02/2020,9805,4125,,Ioda Limited,EMPLOYEE RESOURCING,19201,Training Fees,Revenue
19/02/2020,9803,2000,,Ioda Limited,EMPLOYEE RESOURCING,19201,Training Fees,Revenue
19/02/2020,7402588096,1386.48,,Dell Corporation,Fire Safety Prev,43106,ICT Consumables,Revenue
19/02/2020,7402588100,783.1,,Dell Corporation,Fire Safety Prev,43106,ICT Consumables,Revenue
19/02/2020,29190,874.09,,BCS Electrics Ltd,PROPERTY,21013,Electrical Reps (Fr),Revenue
19/02/2020,29188,565.2,,BCS Electrics Ltd,CASTLEFORD,21013,Electrical Reps (Fr),Revenue
19/02/2020,6181927,10630,,Ricardo-Aea Limited,Information Technlgy,43103,ICT Maintenance & Support,Revenue
20/02/2020,4432,1598.1,,Hughes Safety Showers,OPERATIONS EQUIPMENT,40005,Operational Equ Pch,Revenue
20/02/2020,3206,1343,,Goliath Footwear Ltd,SUPPLIES SECTION,41500,Clothing,Revenue
20/02/2020,3207,9945,,Goliath Footwear Ltd,SUPPLIES SECTION,41500,Clothing,Revenue
20/02/2020,3208,11747.47,,Goliath Footwear Ltd,SUPPLIES SECTION,41500,Clothing,Revenue
20/02/2020,SMS1920-1546,3600,,SOTER Management Systems Ltd,Corporate Management and Support,59061,Inst Srv-Commctn,Capital
20/02/2020,SI222727,594.62,,Dale Power Solutions Ltd,HUDDERSFIELD,21013,Electrical Reps (Fr),Revenue
20/02/2020,3509,1850,,Aire Valley Tree Services Ltd,MOORTOWN,24000,Grounds Maintenance,Revenue
20/02/2020,WYF01/20,500,,Yoga Inside Out,Health & Safety,40035,Wellbeing,Revenue
21/02/2020,CSI00401,47654.64,,Marshall Building Contractors,Corporate Management and Support,59052,Cont-External,Capital
21/02/2020,MJA01547,23196,,Mja Consultants,Corporate Management and Support,59058,Fee-External,Capital
21/02/2020,29205,5081.27,,BCS Electrics Ltd,Corporate Management and Support,59052,Cont-External,Capital
21/02/2020,65008456000000X,887.58,,Yorkshire Water,Corporate Management and Support,59164,Equipment,Capital
21/02/2020,650079790000005,632.57,,Yorkshire Water,Corporate Management and Support,59164,Equipment,Capital
21/02/2020,650079830000003,978.97,,Yorkshire Water,Corporate Management and Support,59164,Equipment,Capital
21/02/2020,INV-1947,1087.5,,Robert Whetham Associates,Corporate Management and Support,59058,Fee-External,Capital
21/02/2020,185647,1340,,PMD Technologies Ltd,COOKRIDGE,21009,Plumbing Facilities,Revenue
21/02/2020,28691,2568.55,,BCS Electrics Ltd,FLEET MAINTENANCE,21013,Electrical Reps (Fr),Revenue
21/02/2020,28801,7731.39,,BCS Electrics Ltd,FLEET MAINTENANCE,21013,Electrical Reps (Fr),Revenue
21/02/2020,28802,7007.07,,BCS Electrics Ltd,FLEET MAINTENANCE,21013,Electrical Reps (Fr),Revenue
21/02/2020,28729,2867.3,,BCS Electrics Ltd,Various,20000,Ann Contract/Service,Revenue
24/02/2020,28689,592.67,,BCS Electrics Ltd,TRAINING DELIVERY,21013,Electrical Reps (Fr),Revenue
24/02/2020,6291458416,7934.23,,Leeds City Council,Various,28502,Contract Cleaning,Revenue
24/02/2020,ARCV333071,702,,Alliance Automotive UK CV Ltd T/a,FLEET MAINTENANCE,30001,Dir Cost-Spare Parts,Revenue
24/02/2020,ARCV333885,990,,Alliance Automotive UK CV Ltd T/a,FLEET MAINTENANCE,30001,Dir Cost-Spare Parts,Revenue
24/02/2020,3622594,2007.41,,Bayford Oil,RAWDON,30200,Vehicle Fuel,Revenue
24/02/2020,BSLEEI00308,1475,,Watts Group PLC,PROPERTY,42511,Consultancy Fees,Revenue
24/02/2020,MJA01554,670,,Mja Consultants,TRAINING DELIVERY,21013,Electrical Reps (Fr),Revenue
24/02/2020,3653379,3936.8,,Bayford Oil,Killingbeck,30200,Vehicle Fuel,Revenue
24/02/2020,3663367,3936.8,,Bayford Oil,Shipley New,30200,Vehicle Fuel,Revenue
24/02/2020,INV-7928,2250,,Cell:cm Ltd (Head Office),PROPERTY,42511,Consultancy Fees,Revenue
25/02/2020,52400327,535,,Volvo Group Uk Ltd,Information Technlgy,43103,ICT Maintenance & Support,Revenue
25/02/2020,139943,578.5,,Niche Office Solutions Ltd,Information Technlgy,43017,Corporate Mobile Phone,Revenue
25/02/2020,418406,795,,West Suffolk NHS Foundation Trust,TRAINING DELIVERY,19240,Prot/Prev Tng,Revenue
25/02/2020,50174394,900,,Haymarket Media Group Limited,EMPLOYMENT SERVICES,18100,Staff Advertising,Revenue
25/02/2020,I0022660,4858.8,,Merseyside Fire & Rescue Authority,TRAINING DELIVERY,19238,Ops Res Tng,Revenue
25/02/2020,INV-000000992,29472,,Sunrise Software Ltd,Information Technlgy,43103,ICT Maintenance & Support,Revenue
25/02/2020,9796,1500,,Ioda Limited,EMPLOYEE RESOURCING,19201,Training Fees,Revenue
25/02/2020,1927,942.5,,Advanced Monitoring Limited,PROPERTY,20000,Ann Contract/Service,Revenue
25/02/2020,ARL03298,2880,,Airmax Remote,Information Technlgy,43103,ICT Maintenance & Support,Revenue
25/02/2020,EXI1394518,1566.43,0,Lex Autolease,Various,34001,Vehicle Leasing,Revenue
25/02/2020,INV-2071,1615,,2H Architecture Limited,Corporate Management and Support,59058,Fee-External,Capital
25/02/2020,INV-3186,15327.02,,The Phoenix Works,Corporate Management and Support,59052,Cont-External,Capital
25/02/2020,7612028,7000,,Ministry Of Defence,SUPPLIES SECTION,40011,Recycling,Revenue
25/02/2020,2547588,58040.01,,Home Office,Operations,43026,Radio Licensing,Revenue
26/02/2020,10022020,1089.44,,The Victoria Theatre,Calderdale DFSO,45108,Fire Prevn Pblcty,Revenue
26/02/2020,321959,1600,,The Knowledge Academy Ltd,TRAINING DELIVERY,19203,Non Uniformed,Revenue
26/02/2020,70004921,1428,,Pageone Communications Ltd,Information Technlgy,43024,Pagers,Revenue
26/02/2020,1653,778,,Dk Brown Associates,Corporate Management and Support,59058,Fee-External,Capital
26/02/2020,52698,780,,Wt Partnership,Corporate Management and Support,59058,Fee-External,Capital
26/02/2020,52699,780,,Wt Partnership,Corporate Management and Support,59058,Fee-External,Capital
26/02/2020,52697,2390,,Wt Partnership,Corporate Management and Support,59058,Fee-External,Capital
26/02/2020,650043720000003,1457.91,,Yorkshire Water,Corporate Management and Support,59164,Equipment,Capital
26/02/2020,650077150000006,978.97,,Yorkshire Water,Corporate Management and Support,59164,Equipment,Capital
26/02/2020,6591636,888.93,,Michael Page International Recruitm,PUBLIC INFORMATION,15001,Admin - Basic Pay,Revenue
26/02/2020,650091730000006,951.58,,Yorkshire Water,Corporate Management and Support,59164,Equipment,Capital
26/02/2020,LGWF23JZ,2618.49,,Npower Ltd,PROPERTY,25000,Energy-Electric,Revenue
26/02/2020,LGWF23J2,4661.79,,Npower Ltd,HALIFAX,25000,Energy-Electric,Revenue
26/02/2020,3239,1365,,Goliath Footwear Ltd,SUPPLIES SECTION,41500,Clothing,Revenue
26/02/2020,LGWF23J4,1932.07,,Npower Ltd,COOKRIDGE,25000,Energy-Electric,Revenue
27/02/2020,655,500,,Girlington Community Association,Bradford DFSO,45108,Fire Prevn Pblcty,Revenue
27/02/2020,9812,750,,Ioda Limited,EMPLOYEE RESOURCING,19201,Training Fees,Revenue
27/02/2020,650091720000008,951.58,,Yorkshire Water,Corporate Management and Support,59164,Equipment,Capital
27/02/2020,BC-01-20-S2301,31864.25,,Bristol Uniforms Ltd,SUPPLIES SECTION,41900,Laundry,Revenue
27/02/2020,SI-138750,595.83,,Wolverson Fitness Ltd,Skelmanthorpe,40010,Station Devt Equpmnt,Revenue
27/02/2020,10916,1238,,T Kirk Forestry,Operatiopnal Training,45119,USAR Chainsaw Recert,Revenue
27/02/2020,38725224,3204,,M I Supplies Ltd,SUPPLIES SECTION,41500,Clothing,Revenue
27/02/2020,38725520,900,,M I Supplies Ltd,SUPPLIES SECTION,41500,Clothing,Revenue
27/02/2020,38726251,1267.2,,M I Supplies Ltd,SUPPLIES SECTION,41500,Clothing,Revenue
28/02/2020,9303083012,993.6,,Seton,Information Technlgy,42100,Stationery,Revenue
28/02/2020,HEX54000690109,9723.87,,Experian Ltd,Information Technlgy,43103,ICT Maintenance & Support,Revenue
28/02/2020,3653550,1989.76,,Bayford Oil,HUDDERSFIELD,25002,Energy-Fuel Oil,Revenue
28/02/2020,INV-4165,4235.78,,Amberhawk Training Ltd,TRAINING DELIVERY,19223,Extrication,Revenue
28/02/2020,TK128870,3757.8,,Thomas Kneale & Co Ltd,Fire Safety Prev,40037,Safety Equipment,Revenue
28/02/2020,5032,820,,The Outreach Organisation Ltd,TRAINING DELIVERY,19223,Extrication,Revenue
28/02/2020,5039,2490,,The Outreach Organisation Ltd,TRAINING DELIVERY,19223,Extrication,Revenue
28/02/2020,5049,810,,The Outreach Organisation Ltd,TRAINING DELIVERY,19223,Extrication,Revenue
28/02/2020,2616,787.5,,Trafficlear Ltd,FLEET MANAGEMENT,34002,Vhcle Leas Misc Exp,Revenue
28/02/2020,110938,1598.38,,Corporate Travel Mgmt (North) Ltd,FINANCE SECTION,35000,Public Transport,Revenue
28/02/2020,9797,750,,Ioda Limited,EMPLOYEE RESOURCING,19201,Training Fees,Revenue
28/02/2020,MJA01555,1610.12,,Mja Consultants,Various,21013,Electrical Reps (Fr),Revenue
28/02/2020,YF756109,21653.67,,Toyota (GB) PLC,Corporate Management and Support,59165,Vehicles & Plant,Capital
28/02/2020,YF756110,21653.67,,Toyota (GB) PLC,Corporate Management and Support,59165,Vehicles & Plant,Capital
28/02/2020,YF756111,21653.67,,Toyota (GB) PLC,Corporate Management and Support,59165,Vehicles & Plant,Capital
28/02/2020,YF756112,21653.67,,Toyota (GB) PLC,Corporate Management and Support,59165,Vehicles & Plant,Capital
28/02/2020,YF756113,21653.67,,Toyota (GB) PLC,Corporate Management and Support,59165,Vehicles & Plant,Capital
28/02/2020,YF756114,21653.67,,Toyota (GB) PLC,Corporate Management and Support,59165,Vehicles & Plant,Capital
28/02/2020,YF756115,21653.67,,Toyota (GB) PLC,Corporate Management and Support,59165,Vehicles & Plant,Capital
28/02/2020,YF756116,21653.67,,Toyota (GB) PLC,Corporate Management and Support,59165,Vehicles & Plant,Capital
28/02/2020,YF760294,21653.67,,Toyota (GB) PLC,Corporate Management and Support,59165,Vehicles & Plant,Capital
28/02/2020,YF760296,21653.67,,Toyota (GB) PLC,Corporate Management and Support,59165,Vehicles & Plant,Capital
28/02/2020,YF760295,21653.67,,Toyota (GB) PLC,Corporate Management and Support,59165,Vehicles & Plant,Capital
28/02/2020,29072,2992.79,,BCS Electrics Ltd,TRAINING DELIVERY,21013,Electrical Reps (Fr),Revenue
28/02/2020,6594090,846.6,,Michael Page International Recruitm,PUBLIC INFORMATION,15001,Admin - Basic Pay,Revenue
28/02/2020,29067,729.86,,BCS Electrics Ltd,FAIRWEATHER GREEN,21013,Electrical Reps (Fr),Revenue
02/03/2020,2618,787.5,,Trafficlear Ltd,FLEET MANAGEMENT,34002,Vhcle Leas Misc Exp,Revenue
02/03/2020,173558,860.93,,Nb Data Ltd,Information Technlgy,43022,ICT Spares & Repairs,Revenue
02/03/2020,29070,528.82,,BCS Electrics Ltd,ILKLEY,21013,Electrical Reps (Fr),Revenue
03/03/2020,YF762034,-21653.67,,Toyota (GB) PLC,Corporate Management and Support,59165,Vehicles & Plant,Capital
03/03/2020,YF762033,-21653.67,,Toyota (GB) PLC,Corporate Management and Support,59165,Vehicles & Plant,Capital
03/03/2020,RACR324788,-5524.09,0,Lex Autolease,FLEET MANAGEMENT,34001,Vehicle Leasing,Revenue
03/03/2020,103787A,3599.53,,Townley Network Solutions Ltd,Various,43015,Landlines Call Charges,Revenue
03/03/2020,551472,600,,Masta,Health & Safety,40026,First Aid Equ Pch,Revenue
03/03/2020,548964,600,,Masta,Health & Safety,40026,First Aid Equ Pch,Revenue
03/03/2020,LGWF3VBM,1762.18,,Npower Ltd,Killingbeck,25000,Energy-Electric,Revenue
03/03/2020,LGWF3FMF,3054.09,,Npower Ltd,BRADFORD,25000,Energy-Electric,Revenue
03/03/2020,LGWF3FMG,1325.9,,Npower Ltd,PONTEFRACT,25000,Energy-Electric,Revenue
03/03/2020,LGWF3FMH,774.18,,Npower Ltd,NORMANTON,25000,Energy-Electric,Revenue
03/03/2020,LGWF3FMJ,1117.9,,Npower Ltd,ROTHWELL,25000,Energy-Electric,Revenue
03/03/2020,LGWF3FMK,1653.52,,Npower Ltd,LEEDS,25000,Energy-Electric,Revenue
03/03/2020,LGWF3FL8,12427.98,,Npower Ltd,PROPERTY,25000,Energy-Electric,Revenue
03/03/2020,LGWF3FL9,1243.59,,Npower Ltd,Rastrick,25000,Energy-Electric,Revenue
03/03/2020,LGWF3FMB,1169.52,,Npower Ltd,Dewsbury New,25000,Energy-Electric,Revenue
03/03/2020,LGWF3FMC,935.43,,Npower Ltd,Shipley New,25000,Energy-Electric,Revenue
03/03/2020,LGWF3FMD,6493.1,,Npower Ltd,NEW CONTROL PROJECT,25000,Energy-Electric,Revenue
03/03/2020,7402593759,1180.61,,Dell Corporation,Fire Investigation,43106,ICT Consumables,Revenue
03/03/2020,29248,7263.33,,BCS Electrics Ltd,Corporate Management and Support,59052,Cont-External,Capital
03/03/2020,YF762114,21653.67,,Toyota (GB) PLC,Corporate Management and Support,59165,Vehicles & Plant,Capital
03/03/2020,YF762115,21653.67,,Toyota (GB) PLC,Corporate Management and Support,59165,Vehicles & Plant,Capital
03/03/2020,29243,24091.86,,BCS Electrics Ltd,Corporate Management and Support,59052,Cont-External,Capital
03/03/2020,YF761628,21653.67,,Toyota (GB) PLC,Corporate Management and Support,59165,Vehicles & Plant,Capital
03/03/2020,YF761629,21653.67,,Toyota (GB) PLC,Corporate Management and Support,59165,Vehicles & Plant,Capital
03/03/2020,YF761623,21653.67,,Toyota (GB) PLC,Corporate Management and Support,59165,Vehicles & Plant,Capital
03/03/2020,YF761010,21653.67,,Toyota (GB) PLC,Corporate Management and Support,59165,Vehicles & Plant,Capital
03/03/2020,YF761014,21653.67,,Toyota (GB) PLC,Corporate Management and Support,59165,Vehicles & Plant,Capital
03/03/2020,CSI00405,142427.6,,Marshall Building Contractors,Corporate Management and Support,59052,Cont-External,Capital
03/03/2020,YF761015,21653.67,,Toyota (GB) PLC,Corporate Management and Support,59165,Vehicles & Plant,Capital
03/03/2020,YF761016,21653.67,,Toyota (GB) PLC,Corporate Management and Support,59165,Vehicles & Plant,Capital
03/03/2020,650077230000007,978.97,,Yorkshire Water,Corporate Management and Support,59164,Equipment,Capital
03/03/2020,650091770000009,632.57,,Yorkshire Water,Corporate Management and Support,59164,Equipment,Capital
03/03/2020,650091700000001,632.57,,Yorkshire Water,Corporate Management and Support,59164,Equipment,Capital
03/03/2020,29242,5714.34,,BCS Electrics Ltd,Various,21013,Electrical Reps (Fr),Revenue
03/03/2020,146331,3139,,Physio Med Ltd,Health & Safety,18301,Specialists Fees,Revenue
03/03/2020,6595922,790.16,,Michael Page International Recruitm,PUBLIC INFORMATION,15001,Admin - Basic Pay,Revenue
03/03/2020,3661769,2952.6,,Bayford Oil,PONTEFRACT,30200,Vehicle Fuel,Revenue
03/03/2020,3662063,9798.96,,Bayford Oil,TRAINING DELIVERY,30200,Vehicle Fuel,Revenue
03/03/2020,3700972,2445,,Bayford Oil,LEEDS,30200,Vehicle Fuel,Revenue
03/03/2020,3704556,2934,,Bayford Oil,BRADFORD,30200,Vehicle Fuel,Revenue
03/03/2020,EXI1389299,1252.85,0,Lex Autolease,Various,34001,Vehicle Leasing,Revenue
03/03/2020,EXI1396977,2403.71,0,Lex Autolease,Various,34001,Vehicle Leasing,Revenue
03/03/2020,INV/6878,872.75,,Industrial Door Solutions Limited,RAWDON,21006,Appliance Bay Doors,Revenue
03/03/2020,24375,1773.6,,Business Image,SUPPLIES SECTION,41500,Clothing,Revenue
03/03/2020,148386,1185.45,,Southcombe Brothers Ltd,SUPPLIES SECTION,41500,Clothing,Revenue
03/03/2020,3655867,2952.6,,Bayford Oil,Dewsbury New,30200,Vehicle Fuel,Revenue
03/03/2020,0940000048-087,3054.13,,Airwave Solutions Ltd,Information Technlgy,43103,ICT Maintenance & Support,Revenue
03/03/2020,SI223537,890,,Dale Power Solutions Ltd,Various,20000,Ann Contract/Service,Revenue
03/03/2020,RAIN324789,5524.09,0,Lex Autolease,FLEET MANAGEMENT,34001,Vehicle Leasing,Revenue
04/03/2020,MC/273,1125,,Montgomery & Coupers Ltd,PROPERTY,42511,Consultancy Fees,Revenue
04/03/2020,OP/I860177,17800,,Phoenix Software Ltd,Information Technlgy,43103,ICT Maintenance & Support,Revenue
04/03/2020,EXI1399858,703.71,58.93,Lex Autolease,Various,34001,Vehicle Leasing,Revenue
04/03/2020,E2012262094,7326.15,,Allstar Business Solutions Ltd,Various,30200,Vehicle Fuel,Revenue
04/03/2020,15011916,691.26,,Corona Energy,PONTEFRACT,25001,Energy-Gas,Revenue
04/03/2020,15011914,2275.3,,Corona Energy,BRADFORD,25001,Energy-Gas,Revenue
04/03/2020,15011913,1013.45,,Corona Energy,TODMORDEN,25001,Energy-Gas,Revenue
04/03/2020,15011910,793.16,,Corona Energy,BINGLEY,25001,Energy-Gas,Revenue
04/03/2020,15011909,893.18,,Corona Energy,CASTLEFORD,25001,Energy-Gas,Revenue
04/03/2020,15011908,1606.54,,Corona Energy,KEIGHLEY,25001,Energy-Gas,Revenue
04/03/2020,15011907,1779.02,,Corona Energy,WAKEFIELD,25001,Energy-Gas,Revenue
04/03/2020,BSI-435676,2678.04,,Croner-i Limited,EMPLOYMENT SERVICES,44600,Subscriptions,Revenue
04/03/2020,15011902,1301.42,,Corona Energy,Slaithwaite,25001,Energy-Gas,Revenue
04/03/2020,15011901,823.01,,Corona Energy,MOORTOWN,25001,Energy-Gas,Revenue
04/03/2020,148387,7859.4,,Southcombe Brothers Ltd,SUPPLIES SECTION,41500,Clothing,Revenue
04/03/2020,15011897,2617.88,,Corona Energy,HALIFAX,25001,Energy-Gas,Revenue
04/03/2020,15011896,1574.58,,Corona Energy,LEEDS,25001,Energy-Gas,Revenue
04/03/2020,15011895,1130.63,,Corona Energy,RAWDON,25001,Energy-Gas,Revenue
04/03/2020,15011894,873.73,,Corona Energy,FAIRWEATHER GREEN,25001,Energy-Gas,Revenue
04/03/2020,15011893,1333.47,,Corona Energy,ILLINGWORTH,25001,Energy-Gas,Revenue
04/03/2020,38976960,1770.2,,M I Supplies Ltd,SUPPLIES SECTION,41500,Clothing,Revenue
04/03/2020,15011891,1536.39,,Corona Energy,COOKRIDGE,25001,Energy-Gas,Revenue
04/03/2020,38333,2100,,Hall Lane Recyclers Ltd,TRAINING DELIVERY,40025,Scrap Cars Purch,Revenue
04/03/2020,15011889,1514.45,,Corona Energy,PROPERTY,25001,Energy-Gas,Revenue
04/03/2020,15011887,1229.59,,Corona Energy,Cleckheaton,25001,Energy-Gas,Revenue
04/03/2020,15011636,4725.3,,Corona Energy,PROPERTY,25001,Energy-Gas,Revenue
04/03/2020,15011518,688.03,,Corona Energy,Shipley New,25001,Energy-Gas,Revenue
04/03/2020,IN1191200067144,16550.68,,GTT Communications,Information Technlgy,43018,Wan Rental,Revenue
04/03/2020,3347,786.76,,Goliath Footwear Ltd,SUPPLIES SECTION,41500,Clothing,Revenue
04/03/2020,59423,2426.71,,Ask the Office Ltd,Various,41900,Laundry,Revenue
04/03/2020,202020,2507,,Gartan Technologies Ltd,Information Technlgy,43037,HR & Rostering,Revenue
04/03/2020,INV-943579,1240,,Gritit Ltd,Various,24000,Grounds Maintenance,Revenue
04/03/2020,INV-943811,1240,,Gritit Ltd,Various,24000,Grounds Maintenance,Revenue
04/03/2020,43862,5520,,Dr N A L Smith (Medical Services) L,Health & Safety,42510,Client Med Fees/Exps,Revenue
04/03/2020,IN57527,598,,BAM FM Ltd (Head Office),FLEET MAINTENANCE,20000,Ann Contract/Service,Revenue
04/03/2020,2021006,550,,Pepperdog Design Ltd,PUBLIC INFORMATION,40221,Publty/Promtn/Media,Revenue
04/03/2020,EC20353901,775,,Kcom,Information Technlgy,43018,Wan Rental,Revenue
04/03/2020,6723,546,,Star Covers (Leeds) Ltd,FLEET MAINTENANCE,30001,Dir Cost-Spare Parts,Revenue
06/03/2020,IN57562,646.28,,BAM FM Ltd (Head Office),Shipley New,21012,Heating & Mechanical,Revenue
06/03/2020,29310,4679.6,,BCS Electrics Ltd,Corporate Management and Support,59052,Cont-External,Capital
06/03/2020,650079800000009,1457.91,,Yorkshire Water,Corporate Management and Support,59164,Equipment,Capital
06/03/2020,CSI0410,11113.83,,Marshall Building Contractors,Corporate Management and Support,59052,Cont-External,Capital
06/03/2020,INV-5137,1030,,Inspectas Compliance Ltd,Corporate Management and Support,59052,Cont-External,Capital
06/03/2020,MJA01563,2442,,Mja Consultants,Corporate Management and Support,59052,Cont-External,Capital
06/03/2020,IN57526,7734.37,,BAM FM Ltd (Head Office),Corporate Management and Support,59052,Cont-External,Capital
06/03/2020,650077240000005,978.97,,Yorkshire Water,Corporate Management and Support,59164,Equipment,Capital
06/03/2020,43862,4000,,Band Of WY Fire & Rescue Service,CORPORATE SERVICES,44500,Grants,Revenue
06/03/2020,9813,1390,,Ioda Limited,CORPORATE DIVERSITY,19235,Emp Svc Tng,Revenue
06/03/2020,29279,4524.9,,BCS Electrics Ltd,Various,20000,Ann Contract/Service,Revenue
06/03/2020,MC/275,1580,,Montgomery & Coupers Ltd,PROPERTY,42511,Consultancy Fees,Revenue
06/03/2020,MC/276,1185,,Montgomery & Coupers Ltd,PROPERTY,42511,Consultancy Fees,Revenue
06/03/2020,29319,1569.31,,BCS Electrics Ltd,Corporate Management and Support,59052,Cont-External,Capital
06/03/2020,650068580000000,696.57,,Yorkshire Water,Corporate Management and Support,59164,Equipment,Capital
06/03/2020,28104,552,,Crossley Evans Ltd,WATER OFFICE,40027,Hydrants Repair,Revenue
06/03/2020,650077170000002,632.57,,Yorkshire Water,Corporate Management and Support,59164,Equipment,Capital
06/03/2020,650097800000007,978.97,,Yorkshire Water,Corporate Management and Support,59164,Equipment,Capital
06/03/2020,1141233,32625,,Fireangel Safety Technology Ltd,Corporate Management and Support,59164,Equipment,Capital
06/03/2020,59515,825,,Ask the Office Ltd,SUPPLIES SECTION,42100,Stationery,Revenue
06/03/2020,9105903400200130,8840.75,,Scottish Water Business Stream York,Various,26500,Water - Metered,Revenue
06/03/2020,29320,1735.01,,BCS Electrics Ltd,KEIGHLEY,21013,Electrical Reps (Fr),Revenue
06/03/2020,39110302,1242,,M I Supplies Ltd,SUPPLIES SECTION,41500,Clothing,Revenue
09/03/2020,INV-1964,3744,,Robert Whetham Associates,Corporate Management and Support,59058,Fee-External,Capital
10/03/2020,MJA01562,1790,,MJA Consultants,Corporate Management and Support,59052,Cont-External,Capital
10/03/2020,INV-1963,596,,Robert Whetham Associates,Corporate Management and Support,59058,Fee-External,Capital
10/03/2020,24123,880,,Mitton Mechanical Services Ltd,Corporate Management and Support,59052,Cont-External,Capital
11/03/2020,1538137-01,-600,,Crossroads Truck & Bus Ltd,FLEET MAINTENANCE,30001,Dir Cost-Spare Parts,Revenue
11/03/2020,RACR325159,-5146.38,0,Lex Autolease Ltd,Various,34001,Vehicle Leasing,Revenue
11/03/2020,3480,-3266.92,,Altus Safety,PROPERTY,20000,Ann Contract/Service,Revenue
11/03/2020,15010430,-1104.15,,Corona Energy,TRAINING DELIVERY,25001,Energy-Gas,Revenue
11/03/2020,15010437,-1274.82,,Corona Energy,NEW CONTROL PROJECT,25001,Energy-Gas,Revenue
11/03/2020,15010432,-552.46,,Corona Energy,South Kirkby,25001,Energy-Gas,Revenue
11/03/2020,15010431,-902.38,,Corona Energy,ODSAL,25001,Energy-Gas,Revenue
11/03/2020,15010429,-559.75,,Corona Energy,MORLEY,25001,Energy-Gas,Revenue
11/03/2020,15010426,-701.2,,Corona Energy,TRAINING DELIVERY,25001,Energy-Gas,Revenue
11/03/2020,15010425,-1045.84,,Corona Energy,Killingbeck,25001,Energy-Gas,Revenue
11/03/2020,15010424,-870.65,,Corona Energy,Rastrick,25001,Energy-Gas,Revenue
11/03/2020,15010423,-860.98,,Corona Energy,Dewsbury New,25001,Energy-Gas,Revenue
11/03/2020,INV-3492,3900,,The Development Company Ltd,TRAINING DELIVERY,19203,Non Uniformed,Revenue
11/03/2020,7969045,600,,Chubb Fire Ltd (Head Office),IND FIRE TRAINING,40006,Training Equ Purch,Revenue
11/03/2020,SS145,1460,,D Ellis Services,Various,24000,Grounds Maintenance,Revenue
11/03/2020,179958,1215,,Vitalograph Ltd,Health & Safety,40026,First Aid Equ Pch,Revenue
11/03/2020,29326,1309.79,,BCS Electrics Ltd,MYTHOLMROYD,21013,Electrical Reps (Fr),Revenue
11/03/2020,29325,893.37,,BCS Electrics Ltd,Flood Mytholmroyd,21013,Electrical Reps (Fr),Revenue
11/03/2020,341456,997.9,,Systems Assurance Ltd,Information Technlgy,43022,ICT Spares & Repairs,Revenue
11/03/2020,2021011,600,,Pepperdog Design Ltd,PUBLIC INFORMATION,45110,West Yorkshire Prepared - Creative Design Concepts,Revenue
11/03/2020,INV-944492,1280,,Gritit Ltd,Various,24000,Grounds Maintenance,Revenue
11/03/2020,80676808,683.67,,Pageone Communications Ltd,Central Staffing Tm,43031,Systems Maint Non BT,Revenue
11/03/2020,INV-946355,1280,,Gritit Ltd,Various,24000,Grounds Maintenance,Revenue
11/03/2020,3057064013,2408.74,,British Oxygen Co Ltd,USAR,40018,Flood,Revenue
11/03/2020,INV-947063,1280,,Gritit Ltd,Various,24000,Grounds Maintenance,Revenue
11/03/2020,2019100,728.4,,High Impact Development T/a Ei Comp,EMPLOYEE RESOURCING,42511,Consultancy Fees,Revenue
11/03/2020,SI-863,730,,Cafe Perfection Ltd,MIRFIELD,21013,Electrical Reps (Fr),Revenue
11/03/2020,AS/170353,1200,,APIS Solutions,TRAINING DELIVERY,19243,Tech Svcs Tng,Revenue
11/03/2020,LMINV-3042,2200,,Leeds Mind,TRAINING DELIVERY,19205,Health & Safety,Revenue
11/03/2020,7402596518,1033.36,,Dell Corporation,"Command, Leadership & Management",43022,ICT Spares & Repairs,Revenue
11/03/2020,3431,3266.92,,Altus Safety,PROPERTY,20000,Ann Contract/Service,Revenue
11/03/2020,INV-1951,4715,,Robert Whetham Associates,TRAINING DELIVERY,20000,Ann Contract/Service,Revenue
11/03/2020,1537974-01,829.62,,Crossroads Truck & Bus Ltd,FLEET MAINTENANCE,30001,Dir Cost-Spare Parts,Revenue
11/03/2020,MJA01567,1400,,MJA Consultants,NEW CONTROL PROJECT,21006,Appliance Bay Doors,Revenue
11/03/2020,58614,1100.75,,Ask the Office Ltd,Various,42100,Stationery,Revenue
11/03/2020,INV/42012,660,,DFP Services Limited,Various,20000,Ann Contract/Service,Revenue
11/03/2020,2051243,5555.8,,Giffard Newton & Sons Ltd,Various,41500,Clothing,Revenue
11/03/2020,354223,538.53,,Powertrain Products Ltd,FLEET MAINTENANCE,30001,Dir Cost-Spare Parts,Revenue
11/03/2020,59685,1666,,Ask the Office Ltd,SUPPLIES SECTION,40100,Furniture,Revenue
11/03/2020,100922,641.2,,Unipart Rail Ltd Dorman,OPERATIONS EQUIPMENT,40005,Operational Equ Pch,Revenue
11/03/2020,RAIN325160,5099.16,0,Lex Autolease Ltd,FLEET MANAGEMENT,34001,Vehicle Leasing,Revenue
11/03/2020,6425,2018.97,,Harry G Rhodes & Sons Ltd,Various,30006,Ins Claims Excess,Revenue
11/03/2020,10538,3500,,Datatecnix Ltd,Information Technlgy,43103,ICT Maintenance & Support,Revenue
11/03/2020,29371,950.53,,BCS Electrics Ltd,TRAINING DELIVERY,21013,Electrical Reps (Fr),Revenue
11/03/2020,15014476,1104.15,,Corona Energy,TRAINING DELIVERY,25001,Energy-Gas,Revenue
11/03/2020,517646G,564.95,,Arena Group Limited,EMPLOYMENT SERVICES,42201,Photocopier Charges,Revenue
11/03/2020,15014514,1093.11,,Corona Energy,TRAINING DELIVERY,25001,Energy-Gas,Revenue
11/03/2020,517639G,601.47,,Arena Group Limited,FINANCE SECTION,42201,Photocopier Charges,Revenue
11/03/2020,15014475,1274.82,,Corona Energy,NEW CONTROL PROJECT,25001,Energy-Gas,Revenue
11/03/2020,59724,1072,,Ask the Office Ltd,SUPPLIES SECTION,42100,Stationery,Revenue
11/03/2020,148446,3838.6,,Southcombe Brothers Ltd,SUPPLIES SECTION,41500,Clothing,Revenue
11/03/2020,15014472,552.46,,Corona Energy,South Kirkby,25001,Energy-Gas,Revenue
11/03/2020,15014510,570,,Corona Energy,South Kirkby,25001,Energy-Gas,Revenue
11/03/2020,1010341285,543.9,,Hays Specialist Recruitment,EMPLOYMENT SERVICES,15001,Admin - Basic Pay,Revenue
11/03/2020,1010327226,543.9,,Hays Specialist Recruitment,EMPLOYMENT SERVICES,15001,Admin - Basic Pay,Revenue
11/03/2020,1010379814,543.9,,Hays Specialist Recruitment,EMPLOYMENT SERVICES,15001,Admin - Basic Pay,Revenue
11/03/2020,15014473,902.38,,Corona Energy,ODSAL,25001,Energy-Gas,Revenue
11/03/2020,15014511,920.9,,Corona Energy,ODSAL,25001,Energy-Gas,Revenue
11/03/2020,15014477,559.75,,Corona Energy,MORLEY,25001,Energy-Gas,Revenue
11/03/2020,15014515,513.08,,Corona Energy,MORLEY,25001,Energy-Gas,Revenue
11/03/2020,1010419157,543.9,,Hays Specialist Recruitment,EMPLOYMENT SERVICES,15001,Admin - Basic Pay,Revenue
11/03/2020,1010400543,543.9,,Hays Specialist Recruitment,EMPLOYMENT SERVICES,15001,Admin - Basic Pay,Revenue
11/03/2020,1010358987,543.9,,Hays Specialist Recruitment,EMPLOYMENT SERVICES,15001,Admin - Basic Pay,Revenue
11/03/2020,15014474,843.79,,Corona Energy,TRAINING DELIVERY,25001,Energy-Gas,Revenue
11/03/2020,15014512,560.15,,Corona Energy,TRAINING DELIVERY,25001,Energy-Gas,Revenue
11/03/2020,6600384,818.38,,Michael Page International Recruitm,PUBLIC INFORMATION,15001,Admin - Basic Pay,Revenue
11/03/2020,15014468,745.35,,Corona Energy,Killingbeck,25001,Energy-Gas,Revenue
11/03/2020,15014506,1251.14,,Corona Energy,Killingbeck,25001,Energy-Gas,Revenue
11/03/2020,15014470,870.65,,Corona Energy,Rastrick,25001,Energy-Gas,Revenue
11/03/2020,15014508,874.83,,Corona Energy,Rastrick,25001,Energy-Gas,Revenue
11/03/2020,15014469,763.05,,Corona Energy,Dewsbury New,25001,Energy-Gas,Revenue
11/03/2020,15014507,840.56,,Corona Energy,Dewsbury New,25001,Energy-Gas,Revenue
12/03/2020,29378,-1037.51,,BCS Electrics Ltd,BINGLEY,21013,Electrical Reps (Fr),Revenue
12/03/2020,1645,570,,Higher Mapping Solutions,Information Technlgy,43103,ICT Maintenance & Support,Revenue
12/03/2020,SINV3711,4125,,Wakefield College,TRAINING DELIVERY,19203,Non Uniformed,Revenue
12/03/2020,25461,741,,Emergency One (Uk) Ltd,FLEET MANAGEMENT,30004,Rep-Ext Contractors,Revenue
12/03/2020,25460,2340.2,,Emergency One (Uk) Ltd,FLEET MANAGEMENT,30004,Rep-Ext Contractors,Revenue
12/03/2020,25466,640.5,,Emergency One (Uk) Ltd,FLEET MANAGEMENT,30004,Rep-Ext Contractors,Revenue
12/03/2020,25465,532.15,,Emergency One (Uk) Ltd,FLEET MANAGEMENT,30004,Rep-Ext Contractors,Revenue
12/03/2020,25464,3339.75,,Emergency One (Uk) Ltd,FLEET MANAGEMENT,30004,Rep-Ext Contractors,Revenue
12/03/2020,25463,2436,,Emergency One (Uk) Ltd,FLEET MANAGEMENT,30004,Rep-Ext Contractors,Revenue
12/03/2020,20-R1723,1380,,Weber Rescue Uk Ltd,OPERATIONS EQUIPMENT,40005,Operational Equ Pch,Revenue
12/03/2020,29145,1240.33,,BCS Electrics Ltd,BINGLEY,21013,Electrical Reps (Fr),Revenue
12/03/2020,MC/265,790,,Montgomery & Coupers Ltd,PROPERTY,42511,Consultancy Fees,Revenue
12/03/2020,MC/271,1790,,Montgomery & Coupers Ltd,PROPERTY,42511,Consultancy Fees,Revenue
12/03/2020,7933,4314.17,,Tructyre Fleet Management Ltd,FLEET MANAGEMENT,30000,Tyre Purchase,Revenue
12/03/2020,MC/267,6255,,Montgomery & Coupers Ltd,Corporate Management and Support,59058,Fee-External,Capital
12/03/2020,29367,3367.19,,BCS Electrics Ltd,Corporate Management and Support,59052,Cont-External,Capital
12/03/2020,MJA01572,2653.75,,MJA Consultants,Corporate Management and Support,59052,Cont-External,Capital
12/03/2020,781020,1900,,Access Uk Ltd,Corporate Management and Support,59166,Computer Costs,Capital
12/03/2020,16741,1672.6,,Heavy Woollen Textile Co Ltd,SUPPLIES SECTION,41500,Clothing,Revenue
12/03/2020,59728,1072,,Ask the Office Ltd,SUPPLIES SECTION,42100,Stationery,Revenue
12/03/2020,20802870,1281.88,,Nisbets Plc,SUPPLIES SECTION,40008,White Goods Purch,Revenue
12/03/2020,14051239,3596.65,,Palm Equipment Int Ltd,OPERATIONS EQUIPMENT,40005,Operational Equ Pch,Revenue
12/03/2020,IN57547,502.62,,BAM FM Ltd (Head Office),STANNINGLEY,21012,Heating & Mechanical,Revenue
13/03/2020,14071,-38182.83,,Churchill Contract Services Limited,PROPERTY,28502,Contract Cleaning,Revenue
13/03/2020,IN56333A,17831.25,,BAM FM Ltd (Head Office),PROPERTY,20000,Ann Contract/Service,Revenue
13/03/2020,3459,973.23,,Karl Austerfield Roofing Ltd,RAWDON,21014,General Rep & Maint,Revenue
13/03/2020,MC/277,1125,,Montgomery & Coupers Ltd,PROPERTY,42511,Consultancy Fees,Revenue
13/03/2020,97812000000000,1376.25,,Linde Material Handling,FLEET MAINTENANCE,34101,Operating Leases,Revenue
13/03/2020,INV-1978,2964,,Robert Whetham Associates,PROPERTY,21013,Electrical Reps (Fr),Revenue
13/03/2020,14404,9800,,Fuel Proof Ltd,Corporate Management and Support,59164,Equipment,Capital
13/03/2020,MC/279,1185,,Montgomery & Coupers Ltd,PROPERTY,42511,Consultancy Fees,Revenue
13/03/2020,MC/278,1580,,Montgomery & Coupers Ltd,PROPERTY,42511,Consultancy Fees,Revenue
13/03/2020,424741,38182.83,,Churchill Contract Services Limited,PROPERTY,28502,Contract Cleaning,Revenue
16/03/2020,PAYL3 ALEVY11,16287,,HMRC Cumbernauld,EMPLOYEE RESOURCING,19202,Apprentice Tng,Revenue
16/03/2020,LMINV-3073,1650,,Leeds Mind,TRAINING DELIVERY,19205,Health & Safety,Revenue
17/03/2020,MLCR088055,-728.24,0,Lex Autolease Ltd,FLEET MANAGEMENT,34001,Vehicle Leasing,Revenue
17/03/2020,EXI1403530,587.14,51.44,Lex Autolease Ltd,Various,34001,Vehicle Leasing,Revenue
17/03/2020,8040784,3404.36,,Chubb Fire Ltd (Head Office),OPERATIONS EQUIPMENT,40005,Operational Equ Pch,Revenue
17/03/2020,EXI1403204,1252.85,0,Lex Autolease Ltd,Various,34001,Vehicle Leasing,Revenue
17/03/2020,7402580169,1588.43,,Dell Corporation,Central Staffing Tm,43106,ICT Consumables,Revenue
17/03/2020,7402580182,880.04,,Dell Corporation,OPERATIONS EQUIPMENT,43106,ICT Consumables,Revenue
17/03/2020,7402597760,938.93,,Dell Corporation,EMPLOYEE RESOURCING,43106,ICT Consumables,Revenue
17/03/2020,7402598924,581.64,,Dell Corporation,EMPLOYEE RESOURCING,43106,ICT Consumables,Revenue
17/03/2020,6601384,945.37,,Michael Page International Recruitm,PUBLIC INFORMATION,15001,Admin - Basic Pay,Revenue
17/03/2020,12428,660,,Rosenbauer UK PLC,SUPPLIES SECTION,41500,Clothing,Revenue
17/03/2020,20-1457,7900,,XACT Consultancy & Training Ltd,TRAINING DELIVERY,19208,Fire Safy Crses-Extl,Revenue
17/03/2020,E2012317620,2717.26,,Allstar Business Solutions Ltd,Various,30200,Vehicle Fuel,Revenue
17/03/2020,7402585828,1835.31,,Dell Corporation,Information Technlgy,43022,ICT Spares & Repairs,Revenue
18/03/2020,94059106,6426.2,,Vodafone Business Solutions,Information Technlgy,43017,Corporate Mobile Phone,Revenue
18/03/2020,PSINV02691810,5126.8,,CDW Ltd,Information Technlgy,44600,Subscriptions,Revenue
18/03/2020,87553,898.5,,LSi Limited,SUPPLIES SECTION,41500,Clothing,Revenue
18/03/2020,INV-027839,703.66,,Sit-Stand.com,Various,40010,Station Devt Equpmnt,Revenue
18/03/2020,4571,545,,Concept Print,Stores,42000,Printing,Revenue
18/03/2020,39947867,5351.5,,M I Supplies Ltd,SUPPLIES SECTION,41500,Clothing,Revenue
18/03/2020,INV-0674,500,,Pentest People Ltd,Information Technlgy,42511,Consultancy Fees,Revenue
18/03/2020,456746,936.88,,OfficeXpress Europe Limited,SUPPLIES SECTION,43106,ICT Consumables,Revenue
18/03/2020,3290253804,1060,,Linde Material Handling,TRAINING DELIVERY,19243,Tech Svcs Tng,Revenue
18/03/2020,3290253805,1060,,Linde Material Handling,TRAINING DELIVERY,19243,Tech Svcs Tng,Revenue
18/03/2020,47828,900,,Leeds Pallet Co.Ltd.,TRAINING DELIVERY,40006,Training Equ Purch,Revenue
18/03/2020,19194,4002.25,,Ruth Lee Ltd,SUPPLIES SECTION,40006,Training Equ Purch,Revenue
19/03/2020,100051286,1490,,MPL (Yorkshire) Ltd T/A MPL,Corp Mgmt & Support,40005,Operational Equ Pch,Revenue
19/03/2020,650104360000006,1522.91,,Yorkshire Water,Corporate Management and Support,59164,Equipment,Capital
19/03/2020,650091740000004,978.97,,Yorkshire Water,Corporate Management and Support,59164,Equipment,Capital
19/03/2020,650116660000006,1457.91,,Yorkshire Water,Corporate Management and Support,59164,Equipment,Capital
19/03/2020,650091760000000,632.57,,Yorkshire Water,Corporate Management and Support,59164,Equipment,Capital
19/03/2020,650049070000001,1457.91,,Yorkshire Water,Corporate Management and Support,59164,Equipment,Capital
19/03/2020,7402597751,1163.28,,Dell Corporation,Corporate Management and Support,59166,Computer Costs,Capital
19/03/2020,650104380000002,680.57,,Yorkshire Water,Corporate Management and Support,59164,Equipment,Capital
19/03/2020,65010434000000X,1457.91,,Yorkshire Water,Corporate Management and Support,59164,Equipment,Capital
19/03/2020,650104330000001,1457.91,,Yorkshire Water,Corporate Management and Support,59164,Equipment,Capital
19/03/2020,140309,676,,Keela International Ltd,SUPPLIES SECTION,41500,Clothing,Revenue
19/03/2020,53653,939.1,,Safequip Ltd,OPERATIONS EQUIPMENT,40005,Operational Equ Pch,Revenue
19/03/2020,10977,945,,T Kirk Forestry,Operatiopnal Training,45119,USAR Chainsaw Recert,Revenue
19/03/2020,52400952,535,,Volvo Group Uk Ltd,Information Technlgy,43103,ICT Maintenance & Support,Revenue
20/03/2020,MLCR088056,-2404.75,0,Lex Autolease Ltd,FLEET MANAGEMENT,34001,Vehicle Leasing,Revenue
20/03/2020,2652,1049.66,,Trafficlear Ltd,FLEET MANAGEMENT,34002,Vhcle Leas Misc Exp,Revenue
20/03/2020,89,4400,,Michael Wood Management Consultancy,FINANCE SECTION,42511,Consultancy Fees,Revenue
20/03/2020,10952,2372,,T Kirk Forestry,Operatiopnal Training,40015,USAR - Timber,Revenue
20/03/2020,MRI9889714,10269.24,278.79,Lex Autolease Ltd,Various,34001,Vehicle Leasing,Revenue
20/03/2020,INV-0167,19500,,K Lamb Associates Ltd,TRAINING DELIVERY,19238,Ops Res Tng,Revenue
20/03/2020,8863,655,,Society of Operations Engineers,EMPLOYMENT SERVICES,45112,Gen Advertising,Revenue
20/03/2020,IRIN692902,4589.04,417.19,Lex Autolease Ltd,Various,34001,Vehicle Leasing,Revenue
20/03/2020,650104320000003,1457.91,,Yorkshire Water,Corporate Management and Support,59164,Equipment,Capital
20/03/2020,650104350000008,1457.91,,Yorkshire Water,Corporate Management and Support,59164,Equipment,Capital
20/03/2020,650104290000003,1457.91,,Yorkshire Water,Corporate Management and Support,59164,Equipment,Capital
20/03/2020,650116630000001,1521.91,,Yorkshire Water,Corporate Management and Support,59164,Equipment,Capital
23/03/2020,UK-20-0000076,2024,,Jolly Safety Equipment Ltd,USAR,40014,USAR - Ppe,Revenue
23/03/2020,EXI1407699,1106.59,96.96,Lex Autolease Ltd,Various,34001,Vehicle Leasing,Revenue
23/03/2020,EXI1406905,2832.4,0,Lex Autolease Ltd,Various,34001,Vehicle Leasing,Revenue
23/03/2020,EXI1408092,814.72,0,Lex Autolease Ltd,Various,34001,Vehicle Leasing,Revenue
23/03/2020,UK10/022020/9379,1604,,Vodafone Business Solutions,"Emergency Serv, Comms, Programme - WY",43042,Direct Network Service Provider,Revenue
24/03/2020,24133,-880,,Mitton Mechanical Services Ltd,Corporate Management and Support,59052,Cont-External,Capital
24/03/2020,UK10/032020/3325,1604,,Vodafone Business Solutions,"Emergency Serv, Comms, Programme - WY",43042,Direct Network Service Provider,Revenue
24/03/2020,65011664000000X,632.57,,Yorkshire Water,Corporate Management and Support,59164,Equipment,Capital
24/03/2020,SINV067962,1450,,Woodway Engineering Ltd,FLEET MANAGEMENT,34002,Vhcle Leas Misc Exp,Revenue
24/03/2020,1020974,49369.93,,Bytes Security Partnerships Lt,Information Technlgy,43103,ICT Maintenance & Support,Revenue
24/03/2020,10098810,3000,,Lincolnshire County Council,USAR,40017,USAR,Revenue
24/03/2020,3876106,1901.8,,Bayford Oil,WETHERBY,30200,Vehicle Fuel,Revenue
24/03/2020,3863425,3803.6,,Bayford Oil,Ossett New,30200,Vehicle Fuel,Revenue
24/03/2020,3907163,2230.25,,Bayford Oil,LEEDS,30200,Vehicle Fuel,Revenue
24/03/2020,HDIN229024,1177.95,,Wood Auto Supplies Limited,FLEET MAINTENANCE,30001,Dir Cost-Spare Parts,Revenue
24/03/2020,SI-134071,1890,,Totalkare Heavy Duty Workshop Solut,FLEET MAINTENANCE,30005,Workshop Equipment,Revenue
24/03/2020,25660,530.65,,Emergency One (Uk) Ltd,FLEET MANAGEMENT,30004,Rep-Ext Contractors,Revenue
24/03/2020,SLM/00001502,6000,,Kirklees College,TRAINING DELIVERY,19203,Non Uniformed,Revenue
24/03/2020,24134,880,,Mitton Mechanical Services Ltd,Corporate Management and Support,59052,Cont-External,Capital
24/03/2020,111205,1547.34,,Corporate Travel Mgmt (North) Ltd,FINANCE SECTION,35000,Public Transport,Revenue
24/03/2020,25565,872.5,,Emergency One (Uk) Ltd,FLEET MAINTENANCE,30001,Dir Cost-Spare Parts,Revenue
24/03/2020,20104614,1200,,Manbat Ltd (T/a SYBS),FLEET MAINTENANCE,30001,Dir Cost-Spare Parts,Revenue
24/03/2020,325532,2120.75,,Global Knowledge Network Training L,TRAINING DELIVERY,19206,Further Educ'N-Extl,Revenue
24/03/2020,INV-1968,1972,,Robert Whetham Associates,PROPERTY,20002,Contract Management,Revenue
24/03/2020,6604470,1015.92,,Michael Page International Recruitm,PUBLIC INFORMATION,15001,Admin - Basic Pay,Revenue
24/03/2020,3778003,2086.42,,Bayford Oil,HUDDERSFIELD,25002,Energy-Fuel Oil,Revenue
25/03/2020,CN-1983,-1054.5,,Robert Whetham Associates,Corporate Management and Support,59058,Fee-External,Capital
25/03/2020,1157,1730,,SJ Facilities,FAIRWEATHER GREEN,21008,Internal Fabric,Revenue
25/03/2020,42295,1972.1,,R.D.Barrett,OPERATIONS EQUIPMENT,40005,Operational Equ Pch,Revenue
25/03/2020,42313,565.5,,R.D.Barrett,Various,40026,First Aid Equ Pch,Revenue
25/03/2020,SI-159576,1334.05,,Medtree,Fire Auth Bal Sheet,40005,Operational Equ Pch,Revenue
25/03/2020,INV-1969,1248,,Robert Whetham Associates,Corporate Management and Support,59058,Fee-External,Capital
25/03/2020,INV-1971,1054.5,,Robert Whetham Associates,Corporate Management and Support,59058,Fee-External,Capital
25/03/2020,51474,2026,,Concept Engineerings Ltd,OPERATIONS EQUIPMENT,40005,Operational Equ Pch,Revenue
26/03/2020,3,-1125,,Montgomery & Coupers Ltd,PROPERTY,42511,Consultancy Fees,Revenue
26/03/2020,1539113-01,-625.01,,Crossroads Truck & Bus Ltd,FLEET MAINTENANCE,30001,Dir Cost-Spare Parts,Revenue
26/03/2020,R00147198,6028,,TeamViewer Germany GMBH,Information Technlgy,44600,Subscriptions,Revenue
26/03/2020,1539021-01,625.01,,Crossroads Truck & Bus Ltd,FLEET MAINTENANCE,30001,Dir Cost-Spare Parts,Revenue
26/03/2020,1539125-01,510.02,,Crossroads Truck & Bus Ltd,FLEET MAINTENANCE,30001,Dir Cost-Spare Parts,Revenue
26/03/2020,1539270-01,639.34,,Crossroads Truck & Bus Ltd,FLEET MAINTENANCE,30001,Dir Cost-Spare Parts,Revenue
26/03/2020,DR160320AD,950,,Driving Standards Agency,TRAINING DELIVERY,19223,Extrication,Revenue
26/03/2020,EXI1408593,463.58,41.87,Lex Autolease Ltd,Various,34001,Vehicle Leasing,Revenue
26/03/2020,2550930,58040.01,,Home Office,Operations,43026,Radio Licensing,Revenue
26/03/2020,MC/272,1125,,Montgomery & Coupers Ltd,PROPERTY,42511,Consultancy Fees,Revenue
26/03/2020,EXI1409908,1753.99,0,Lex Autolease Ltd,Various,34001,Vehicle Leasing,Revenue
26/03/2020,IRIN694039,5279.64,488.56,Lex Autolease Ltd,Various,34001,Vehicle Leasing,Revenue
26/03/2020,937646331,1388.81,,Arco Group,Stores,40005,Operational Equ Pch,Revenue
26/03/2020,EXI1408883,751.71,0,Lex Autolease Ltd,Various,34001,Vehicle Leasing,Revenue
26/03/2020,5620,2094.46,,Ulysses (2000) Ltd,Information Technlgy,43103,ICT Maintenance & Support,Revenue
26/03/2020,SI-159835,757.85,,Medtree,OPERATIONS EQUIPMENT,40006,Training Equ Purch,Revenue
26/03/2020,53452,2570.5,,Speedings Limited,OPERATIONS EQUIPMENT,40005,Operational Equ Pch,Revenue
26/03/2020,ARL03548,2895,,Airmax Remote,Information Technlgy,43103,ICT Maintenance & Support,Revenue
26/03/2020,35065,1024.56,,Pennine Pneumatic Services Ltd,OPERATIONS EQUIPMENT,40005,Operational Equ Pch,Revenue
26/03/2020,142226,528,,Sentinel,FLEET MAINTENANCE,30002,Consumables-Veh Rep,Revenue
26/03/2020,455821,5436.59,,Bradford Bolt & Nut Co Ltd,OPERATIONS EQUIPMENT,40005,Operational Equ Pch,Revenue
27/03/2020,LGX20978,-6602.02,,Npower Ltd,PROPERTY,25000,Energy-Electric,Revenue
27/03/2020,LGX21890,-6602.02,,Npower Ltd,Various,25000,Energy-Electric,Revenue
27/03/2020,LGX21772,6602.02,,Npower Ltd,PROPERTY,25000,Energy-Electric,Revenue
27/03/2020,LGWGDPCJ,2559.42,,Npower Ltd,ILLINGWORTH,25000,Energy-Electric,Revenue
27/03/2020,LGWGDPCK,2249.43,,Npower Ltd,KEIGHLEY,25000,Energy-Electric,Revenue
27/03/2020,LGWGDPCL,1505.75,,Npower Ltd,ODSAL,25000,Energy-Electric,Revenue
27/03/2020,38438,560,,Hall Lane Recyclers Ltd,HALIFAX,40025,Scrap Cars Purch,Revenue
27/03/2020,BC-02-20-S2314,20832.17,,Bristol Care,SUPPLIES SECTION,41900,Laundry,Revenue
27/03/2020,IN27329,905,,Gremedia Screenprint Ltd,FLEET MAINTENANCE,30001,Dir Cost-Spare Parts,Revenue
27/03/2020,2084,1007.5,,Advanced Monitoring Limited,PROPERTY,20000,Ann Contract/Service,Revenue
27/03/2020,9103,1064.4,,Computaform(UK)Ltd T/A LecoComputer,SUPPLIES SECTION,43106,ICT Consumables,Revenue
27/03/2020,9105903400200220,10064.97,,Scottish Water Business Stream York,Various,26500,Water - Metered,Revenue
27/03/2020,LGWGDPCM,1068.46,,Npower Ltd,TODMORDEN,25000,Energy-Electric,Revenue
27/03/2020,LGWGDPCN,1475.22,,Npower Ltd,RAWDON,25000,Energy-Electric,Revenue
27/03/2020,LGWGDPCP,1788.69,,Npower Ltd,BINGLEY,25000,Energy-Electric,Revenue
27/03/2020,LGWGDPCR,1774.16,,Npower Ltd,Ossett New,25000,Energy-Electric,Revenue
27/03/2020,LGWGDPCG,1462.02,,Npower Ltd,GARFORTH,25000,Energy-Electric,Revenue
27/03/2020,LGWGDPCQ,1353.16,,Npower Ltd,South Kirkby,25000,Energy-Electric,Revenue
27/03/2020,39490,705.6,,Supply Plus,FLEET MAINTENANCE,30001,Dir Cost-Spare Parts,Revenue
27/03/2020,YF765614,21653.67,,Toyota (GB) PLC,Corporate Management and Support,59165,Vehicles & Plant,Capital
27/03/2020,YF765612,21653.67,,Toyota (GB) PLC,Corporate Management and Support,59165,Vehicles & Plant,Capital
27/03/2020,29379,20288.49,,BCS Electrics Ltd,Corporate Management and Support,59052,Cont-External,Capital
27/03/2020,29380,3848.17,,BCS Electrics Ltd,Corporate Management and Support,59052,Cont-External,Capital
27/03/2020,29381,14028.36,,BCS Electrics Ltd,Corporate Management and Support,59052,Cont-External,Capital
27/03/2020,INV-5243,9922.5,,Inspectas Compliance Ltd,Corporate Management and Support,59052,Cont-External,Capital
30/03/2020,LGWGDPCH,597.28,,Npower Ltd,ILKLEY,25000,Energy-Electric,Revenue
30/03/2020,53077,3388,,Safequip Ltd,OPERATIONS EQUIPMENT,40005,Operational Equ Pch,Revenue
30/03/2020,300266424,1121.52,,Freight Transport Association,FLEET MANAGEMENT,44600,Subscriptions,Revenue
30/03/2020,146766,4461,,Physio Med Ltd,Health & Safety,18301,Specialists Fees,Revenue
30/03/2020,0940000048-088,3054.13,,Airwave Solutions Ltd,Information Technlgy,43103,ICT Maintenance & Support,Revenue
30/03/2020,10992,1238,,T Kirk Forestry,Operatiopnal Training,45123,Chainsaw Operator,Revenue
30/03/2020,IN58076,847.77,,BAM FM Ltd (Head Office),WAKEFIELD,21012,Heating & Mechanical,Revenue
30/03/2020,10693,950.34,,Jafco Tools Ltd,OPERATIONS EQUIPMENT,40005,Operational Equ Pch,Revenue
30/03/2020,59564,1245,,Texthelp Ltd,CORPORATE DIVERSITY,40039,Access to work purchase,Revenue
30/03/2020,650101000000006,1749.49,,Yorkshire Water,TRAINING DELIVERY,21014,General Rep & Maint,Revenue
30/03/2020,104491A,3506,,Townley Network Solutions Ltd,Various,43015,Landlines Call Charges,Revenue
30/03/2020,EC20376886,775,,KCOM Group Ltd,Information Technlgy,43018,Wan Rental,Revenue
30/03/2020,2692,1049.66,,Trafficlear Ltd,FLEET MANAGEMENT,34002,Vhcle Leas Misc Exp,Revenue
30/03/2020,INV-0000002954,1747.2,,Event Equipment Hire,RECRUITS,40100,Furniture,Revenue
31/03/2020,YF768862,21653.67,,Toyota (GB) PLC,Corporate Management and Support,59165,Vehicles & Plant,Capital
31/03/2020,YF768587,21653.67,,Toyota (GB) PLC,Corporate Management and Support,59165,Vehicles & Plant,Capital
31/03/2020,YF766778,21653.67,,Toyota (GB) PLC,Corporate Management and Support,59165,Vehicles & Plant,Capital
31/03/2020,YF766779,21653.67,,Toyota (GB) PLC,Corporate Management and Support,59165,Vehicles & Plant,Capital
31/03/2020,YF768588,21653.67,,Toyota (GB) PLC,Corporate Management and Support,59165,Vehicles & Plant,Capital
31/03/2020,YF766777,21653.67,,Toyota (GB) PLC,Corporate Management and Support,59165,Vehicles & Plant,Capital
31/03/2020,ARCV343283,990,,Alliance Automotive UK CV Ltd T/a,FLEET MAINTENANCE,30001,Dir Cost-Spare Parts,Revenue
31/03/2020,1540156-01,3249.95,,Crossroads Truck & Bus Ltd,FLEET MAINTENANCE,30001,Dir Cost-Spare Parts,Revenue
31/03/2020,519538G,1249,,Arena Group Limited,TRAINING DELIVERY,40006,Training Equ Purch,Revenue
31/03/2020,87735,3143.91,,LSi Limited,SUPPLIES SECTION,41500,Clothing,Revenue
31/03/2020,15109008,5936.12,,Corona Energy,PROPERTY,25001,Energy-Gas,Revenue
31/03/2020,15108910,824,,Corona Energy,Shipley New,25001,Energy-Gas,Revenue
31/03/2020,15108455,752.65,,Corona Energy,PONTEFRACT,25001,Energy-Gas,Revenue
31/03/2020,15108452,2470.51,,Corona Energy,BRADFORD,25001,Energy-Gas,Revenue
31/03/2020,15108448,605.15,,Corona Energy,ROTHWELL,25001,Energy-Gas,Revenue
31/03/2020,15108446,828.92,,Corona Energy,BINGLEY,25001,Energy-Gas,Revenue
31/03/2020,15108445,762.16,,Corona Energy,CASTLEFORD,25001,Energy-Gas,Revenue
31/03/2020,43891,5520,,Dr N A L Smith (Medical Services) L,Health & Safety,18301,Specialists Fees,Revenue
31/03/2020,15108444,1635.98,,Corona Energy,KEIGHLEY,25001,Energy-Gas,Revenue
31/03/2020,15108443,1776.2,,Corona Energy,WAKEFIELD,25001,Energy-Gas,Revenue
31/03/2020,15108438,1320.78,,Corona Energy,Slaithwaite,25001,Energy-Gas,Revenue
31/03/2020,15108437,839.71,,Corona Energy,MOORTOWN,25001,Energy-Gas,Revenue
31/03/2020,15108433,2759.33,,Corona Energy,HALIFAX,25001,Energy-Gas,Revenue
31/03/2020,15108432,1646.22,,Corona Energy,LEEDS,25001,Energy-Gas,Revenue
31/03/2020,384177,1181.21,,Peli Products UK Ltd,OPERATIONS EQUIPMENT,40005,Operational Equ Pch,Revenue
